{"text_format":"3","workbook":"xlsx","n_sheets":7,"sheets":["COVER","FINAL SUMMARY ","P&Gs","Building Works","EXTERNAL WORKS","LABOUR RATES","Electrical Works"],"not_rendered":{"images":7,"defined_names":11},"read":"whole","date_system":"1900"}

{"sheet":"COVER","index":0,"n_rows":41,"n_cols":9,"rows_kept":41,"merged":[[2,8,2,11],[18,1,18,11],[27,8,27,9],[40,8,40,10]]}
[]
[]
[{"$nulls":8},"TRANSMISSION NORTHERN GRID"]
{"$rows_empty":15}
[null,"*Where the word \"Bill Of Quantities\" is used it shall mean Price Schedule"]
[]
[]
[null,"TENDER NUMBER",{"$nulls":5},": "]
[]
[]
[null,"CONTRACTOR",{"$nulls":5},":"]
[]
[]
[null,"TENDER OFFER",{"$nulls":5},":","Not applicable"]
[null,"(Excluding VAT)",{"$nulls":6},"(Contract is rates based)"]
[]
[]
[null,"AUTHORISED SIGNATORY NAME",{"$nulls":5},":"]
[]
[]
[null,"DESIGNATION",{"$nulls":5},":","CONTRACT MANAGER"]
[]
[]
[null,"AUTHORISED SIGNATURE",{"$nulls":5},":"]
[]
[]
[null,"DATE",{"$nulls":5},":"]

{"sheet":"FINAL SUMMARY ","index":1,"n_rows":61,"n_cols":4,"rows_kept":61,"merged":[[0,7,0,10],[3,0,3,3],[53,1,55,2]]}
[null,null,"TRANSMISSION NORTHERN GRID"]
[]
[]
["TRANSMISSION NORTHERN GRID \n- PRICE SCHEDULE*"]
[]
[]
["BILL NO.","GENERAL MAINTENANCE",null,"TOTAL RATES\n(Rate Based)"]
[]
["SECTION 1","PRELIMINARY AND GENERAL",null,{"$f":"'P&Gs'!F95","v":{"v":0,"d":"R0.00"}}]
[]
["SECTION 2","BUILDING WORKS",null,{"v":0,"d":"R0.00"}]
[]
["BILL NO.1 ","ALTERATIONS",null,{"$f":"'Building Works'!E382","v":{"v":0,"d":"R0.00"}}]
[]
["BILL NO.2","EARTHWORKS",null,{"$f":"'Building Works'!E470","v":{"v":0,"d":"R0.00"}}]
[]
["BILL NO.3 ","CONCRETE, FORMWORK AND REINFORCEMENT (PROVISIONAL)",null,{"$f":"'Building Works'!E577","v":{"v":0,"d":"R0.00"}}]
[]
["BILL NO.4","MASONRY",null,{"$f":"'Building Works'!E705","v":{"v":0,"d":"R0.00"}}]
[]
["BILL NO.5","WATERPROOFING",null,{"$f":"'Building Works'!E761","v":{"v":0,"d":"R0.00"}}]
[]
["BILL NO.6","ROOF COVERINGS",null,{"$f":"'Building Works'!E821","v":{"v":0,"d":"R0.00"}}]
[]
["BILL NO.7 ","CARPENTRY AND JOINERY",null,{"$f":"'Building Works'!E948","v":{"v":0,"d":"R0.00"}}]
[]
["BILL NO.8 ","CEILINGS, PARTITIONS AND ACCESS FLOORING",null,{"$f":"'Building Works'!E1040","v":{"v":0,"d":"R0.00"}}]
[]
["BILL NO.9","FLOOR COVERINGS",null,{"$f":"'Building Works'!E1065","v":{"v":0,"d":"R0.00"}}]
[]
["BILL NO.10 ","IRONMONGERY",null,{"$f":"'Building Works'!E1086","v":{"v":0,"d":"R0.00"}}]
[]
["BILL NO.11","BLINDS",null,{"$f":"'Building Works'!E1094","v":{"v":0,"d":"R0.00"}}]
[]
["BILL NO.12","METALWORK",null,{"$f":"'Building Works'!E1181","v":{"v":0,"d":"R0.00"}}]
[]
["BILL NO.13","PLASTERING",null,{"$f":"'Building Works'!E1235","v":{"v":0,"d":"R0.00"}}]
[]
["BILL NO.14","TILING",null,{"$f":"'Building Works'!E1313","v":{"v":0,"d":"R0.00"}}]
[]
["BILL NO.15","GLAZING",null,{"$f":"'Building Works'!E1395","v":{"v":0,"d":"R0.00"}}]
[]
["BILL NO.16 ","PAINTWORK",null,{"$f":"'Building Works'!E1501","v":{"v":0,"d":"R0.00"}}]
[]
["BILL NO.17 ","PLUMBING",null,{"$f":"'Building Works'!E1554","v":{"v":0,"d":"R0.00"}}]
[]
["SECTION 3","EXTERNAL WORKS",null,{"$f":"'EXTERNAL WORKS'!F348","v":{"v":0,"d":"R0.00"}}]
[]
["SECTION 4","LABOUR RATES",null,{"$f":"'LABOUR RATES'!E173","v":{"v":0,"d":"R0.00"}}]
[]
["SECTION 5","ELECTRICAL WORKS",null,{"$f":"'Electrical Works'!E148","v":{"v":0,"d":"R0.00"}}]
[]
[null,"SUB-TOTAL",null,{"$f":"SUM(D9:D52)","v":{"v":0,"d":"R0.00"}}]
[null,"Allow 5% Contingencies on the above total to be used at the discretion of the Contracts Manager and deducted in part if so required."]
[{"$nulls":3},{"$f":"D53*0.05","v":{"v":0,"d":"0.00"}}]
[]
[null,"Sub-Total",null,{"$f":"+D53+D55","v":{"v":0,"d":"0.00"}}]
[null,"ADD:"]
[null,"14% VAT",null,{"$f":"D57*0.14","v":{"v":0,"d":"0.00"}}]
[]
[null,"TOTAL CARRIED TO FORM OF OFFER ",null,{"$f":"+D57+D59","v":{"v":0,"d":"0.00"}}]

{"sheet":"P&Gs","index":2,"n_rows":95,"n_cols":7,"rows_kept":95,"merged":[[5,1,5,6]]}
[]
[{"$nulls":3},"TRANSMISSION NORTHERN GRID"]
[]
[]
[]
["Bill No:1","SECTION NO. 1:  PRELIMINARY AND GENERAL "]
[]
["No","ITEM NO.","DESCRIPTION","UNIT","QUANTITY","RATE","AMOUNT"]
[]
[null,null,"FIXED CHARGE ITEMS"]
[]
[1.1,1,"Storage for Materials (as and when required basis)","Sum",0,null,{"$f":"+IF($E12=\"\",\"\",IF($E12=0,\"rate only\",$E12*(F12)))","v":"rate only"}]
[]
[1.2,2,"Sanitation (Portable Toilets): Not requirements, rates caters should there be a pandemic during contract period ","Sum",0,null,{"$f":"+IF($E14=\"\",\"\",IF($E14=0,\"rate only\",$E14*(F14)))","v":"rate only"}]
[]
[1.3,3,"Electricity (Temporary if no Electricity Available on Site): Provision of portable generator and diesel","Sum",0,null,{"$f":"+IF($E16=\"\",\"\",IF($E16=0,\"rate only\",$E16*(F16)))","v":"rate only"}]
[]
[2,null,"Sign Board Labour"]
[]
[2.1,4,"Contractor shall erect on site, maintain throughout the construction duration: Should there be work requires erection of signages ","each",0,null,{"$f":"+IF($E20=\"\",\"\",IF($E20=0,\"rate only\",$E20*(F20)))","v":"rate only"}]
[]
[null,null,"Health and Safety measures (In terms of Eskom Policy 34-333)"]
[3,null,"Safety & Health, Environmental and Quality requirements"]
[]
[]
[3.2,5,"SHEQ File ","Sum",0,null,{"$f":"+IF($E26=\"\",\"\",IF($E26=0,\"rate only\",$E26*(F26)))","v":"rate only"}]
[]
[null,null,"Personal Protective Clothing/Equipment"]
[]
[null,null,"Personal Protective Clothing/Equipment & ensure use thereof for full compliance with company logo","Sum",0,null,{"$f":"+IF($E30=\"\",\"\",IF($E30=0,\"rate only\",$E30*(F30)))","v":"rate only"}]
[]
[null,null,"Examination Gloves, non-sterile :"]
[]
[null,6,"Gloves, examination, nitrile, powder-free, non-sterile, single-useGloves should have long cuffs, reaching well above the wrist, ideally to mid-forearm.Sizes: small, medium, large (not a requirement but for future needs should there be a requirement to provide)","per box of 100",0,null,{"$f":"+IF($E34=\"\",\"\",IF($E34=0,\"rate only\",$E34*(F34)))","v":"rate only"}]
[]
[null,null,"Surgical Mask - Patient"]
[]
[null,7,"Mask, face, aseptic: Fluid Resistant, Molded, Blue (3 PLY), good breathability, internal and external faces should be clearly identified Type I, with ear loops or tie on (not a requirement, for future needs should there be need to provide)","Each",0,null,{"$f":"+IF($E38=\"\",\"\",IF($E38=0,\"rate only\",$E38*(F38)))","v":"rate only"}]
[]
[null,null,"Visor / Face Shield:"]
[]
[null,8,"Made of clear plastic and providing good visibility to both the wearer and the patient. Adjustable band to attach firmly around the head and fit snuggly against the forehead, fog resistant (preferable). Completely cover the sides and length of the face. May be re-usable (made of robust material which can be cleaned and disinfected) or disposable. Not a requirement should there be a need in a future during contract period.","Ea",0,null,{"$f":"+IF($E42=\"\",\"\",IF($E42=0,\"rate only\",$E42*(F42)))","v":"rate only"}]
[]
[null,null,"Apron:"]
[]
[null,9,"Straight apron with bib, Fabric: 100% polyester with PVC coating, or 100% PVC, or 100% rubber, or other fluid resistant coated material.Waterproof, sewn strap for neck and back fastening.Minimum basis weight: 300 g/m2,Covering size: 70 - 90 cm (width) x 120 - 150 cm (heigth).Reusable (provided appropriate arrangements for decontamination are in place) - not requirement but rate can be used for future needs","Ea",0,null,{"$f":"+IF($E46=\"\",\"\",IF($E46=0,\"rate only\",$E46*(F46)))","v":"rate only"}]
[]
[null,null,"Cloth Mask"]
[]
[null,10,"Mask - 3 layers of fabric (As per the DTIC guidelines & specifications)","Ea",0,null,{"$f":"+IF($E50=\"\",\"\",IF($E50=0,\"rate only\",$E50*(F50)))","v":"rate only"}]
[]
[null,null,"Sanitisers and Disinfectants"]
[]
[null,11,"Sanitizer, with not less than 70% alcoholmust comply to WHO-recommended handrub formulations (on request)","Litre",0,null,{"$f":"+IF($E54=\"\",\"\",IF($E54=0,\"rate only\",$E54*(F54)))","v":"rate only"}]
[]
[4,null,"Materials Management"]
[]
[4.1,12,"Once authorised by the Supervisor, the unused materials shall be loaded, off-loaded , stacked and returned to the Eskom Store for future use. ","Sum",0,null,{"$f":"+IF($E58=\"\",\"\",IF($E58=0,\"rate only\",$E58*(F58)))","v":"rate only"}]
[]
[null,null,"Security and medical screening"]
[]
[5,13,"Police clearance and medical fitness certificate  per person","Sum",0,null,{"$f":"+IF($E62=\"\",\"\",IF($E62=0,\"rate only\",$E62*(F62)))","v":"rate only"}]
[]
[]
[null,null,"TIME RELATED ITEMS"]
[]
[8,null,"Site Establishment"]
[]
[]
[null,null,"Accommodation"]
[]
[9,null,"Accommodation Allowance is for the Contractors Staff excluding the casual labourers which are assumed to be residing in the area where the works are executed. To be pre approved by Eskom QS/Contract Manager or Supervisor. Only considered where required work exceeded the normal day work time due to complexity and travelling exceeds 500km return trip.  "]
[]
[9.1,14,"Per person payment where round trip is exceeding 500km (3 star or equivalent)","per night",0,null,{"$f":"+IF($E74=\"\",\"\",IF($E74=0,\"rate only\",$E74*(F74)))","v":"rate only"}]
[]
[]
[null,null,"Transport "]
[]
[10,null,"Transport of resources to and from site will be done in terms of OHS Act (T). The cost to the Contractor to provide safe transport for his employees should be in terms of the Construction Regulations Clause 21 (2) (a) and (i) & adhere to Eskom Life Saving rules. The transport rates includes for both the fixed and running cost components. Tracker records to be provided as proof of km's travelled. Transport Distance to be Measured from Local Eskom  office - to Site and Return. Distances specified above."]
[]
[10.1,15,"LDV 4X2","km",0,null,{"$f":"+IF($E81=\"\",\"\",IF($E81=0,\"rate only\",$E81*(F81)))","v":"rate only"}]
[]
[10.2,16,"LDV 4X4","km",0,null,{"$f":"+IF($E83=\"\",\"\",IF($E83=0,\"rate only\",$E83*(F83)))","v":"rate only"}]
[]
[10.3,17,"Mini-bus 13 Seater","km",0,null,{"$f":"+IF($E85=\"\",\"\",IF($E85=0,\"rate only\",$E85*(F85)))","v":"rate only"}]
[]
[10.4,18,"Mini-bus 23 Seater","km",0,null,{"$f":"+IF($E87=\"\",\"\",IF($E87=0,\"rate only\",$E87*(F87)))","v":"rate only"}]
[]
[10.5,19,"2-4 Ton Truck","km",0,null,{"$f":"+IF($E89=\"\",\"\",IF($E89=0,\"rate only\",$E89*(F89)))","v":"rate only"}]
[]
[10.6,20,"8 Ton Truck ","km",0,null,{"$f":"+IF($E91=\"\",\"\",IF($E91=0,\"rate only\",$E91*(F91)))","v":"rate only"}]
[]
[10.7,21,"8 Ton Truck with Crane","km",0,null,{"$f":"+IF($E93=\"\",\"\",IF($E93=0,\"rate only\",$E93*(F93)))","v":"rate only"}]
[]
["Verified By:",null,"Sub-Total",null,null,{"$f":"SUM(F12:F94)","v":0}]

{"sheet":"Building Works","index":3,"n_rows":1569,"n_cols":6,"rows_kept":1569,"merged":[[4,0,5,5],[1065,0,1074,0]]}
[]
[null,null,"TRANSMISSION NORTHERN GRID"]
[]
[]
["SECTION NO. 2 : BUILDING WORKS"]
[]
["ITEM NO.","DESCRIPTION","UNIT","QUANTITY","RATE","AMOUNT"]
[]
[null,"PRICING OF RATES"]
[]
[null,"All rates inserted in the Pricelist shall cover all costs, charges and profit that may be considd necessary for the carrying out and observance for the provisions of these \"Preambles to all Trades\"."]
[]
[null,"The Tenderer shall insert the amount required against each item which he wishes to price and not insert a lump sum covering a series of items. Only such priced items shall be considd in respect of any adjustment to the Contract Sum.  Items left unpriced will be understood to be covd in the rates for other items throughout these Pricelist."]
[]
[null,"The Tenderer must refer to the Schedule of Rates Pricelistand ensure the required skill profile for this Pricelistis utilised when carrying out works on site. Tenderers must make due allowance for this in their rates and no claims will be entertained in this regard after contract award."]
[]
[null,"Overtime work and normal work:"]
[]
[null,"The Tenderers are advised that the following works may be done during normal working hours as well as after normal working hours. Tenderers must make due allowance for these working hours in the pricing as no claims will be entertained in this regard."]
[]
[null,"NO.1 : ALTERATIONS"]
[]
[null,"SUPPLEMENTARY PREAMBLES:"]
[]
[null,"The breaking down and demolition of existing block walls, hacking off existing plaster, etc. is to be executed with care so as to prevent damage to remaining floor and wall surface and finishes. The contractor must allow for any necessary protection of the existing surfaces as may be necessary."]
[null,"w"]
[null,"Particular care is required to protect the existing timber doors, door frames, and windows. Repairing any existing work will be for the contractor's account."]
[]
[null,"The rates for breaking down and removal of brick walls is deemed to include for plaster finishes on walls. "]
[]
[null,"All existing items taken out from the works unless otherwise stated are to be handed over to the appointed Service Manager/ Supervisor. Representative who shall direct wh on the site such items are to be stored for the removal by others. Refer to the schedule at the end of these Price list."]
[]
[null,"Rubble resulting from breaking down, demolishing, etc. is to be removed from the site by the Contractor on an on going basis to avoid accumulation of mounds of such rubble or earth."]
[]
[null,"Proprietary items or materials:"]
[]
[null,"Proprietary items or materials are to be of the brand specific- or other approved- by the Eskom  Service Manager/ Supervisor prior to tender closing."]
[]
[null,"General"]
[]
[null,"Unless otherwise described the Preambles and full descriptions of the other sections shall apply equally to this section."]
[]
[null,"All voids in ground consequent upon the pulling or cutting are to be filled in with clean earth well consolidated and rammed up to ground level and made good with the required finish to the satisfaction of the Eskom Service Manager/ Supervisor."]
[]
[null,"Allow for watering the works by spraying to prevent any nuisance from dust etc., and supply, ct, maintain and remove on completion all temporary dust screens, etc. required."]
[]
[null,"Allow for protecting all existing work liable to suffer damage (i.e. walls, finishes, floors, windows, etc.) from damage during the building operations, alterations, etc., and from make good all work damaged with new material to match existing to the approval of Eskom Service Manager/ Supervisor"]
[]
[null,"Provide, ct wh directed, maintain for the duration of the contract and remove and make good at completion a  hoarding formed of corrugated iron or timber boarding supported as necessary on framing with posts let into ground, complete with lockable pedestrian and vehicular gates."]
[]
[null,"Measurement:"]
[]
[null,"The measurement that are referred to in this section is brief and the contractor is requested to take his own measurements prior to pricing these documents."]
[]
[null,"Contractor to visit the site"]
[]
[null,"The contractor is advised that alterations work is to be done with utmost of care. The contractor is encouraged to visit the site and view all buildings to determine the extent of demolition and alteration works."]
[]
[null,"All items marked as (L.I) must be executed in labour intensive manner, no deviations will be accepted."]
[]
[null,"The contractor must take this method of construction into consideration when programming the work."]
[]
[]
[null,"TEMPORARY BARRIES & SCREENS"]
[]
[null,"Temporary barriers, screens, etc. including removal:"]
[]
["B1.1","Dust screen 2.7m high between concrete floor and ceiling formed of suitable timber framing with 250 micron polyethylene sheeting stapled or nailed on, including corners, ends, etc.","m",0,null,{"$f":"+IF($D68=\"\",\"\",IF($D68=0,\"rate only\",$D68*(E68)))","v":"rate only"}]
[]
["B1.2","Drywall barrier, 2.7m high formed of timber studs and rails covd on one side with 12.7mm gypsum board panels and finishes with two coats interior quality PVA paint on one side, including corners, ends, etc.","m",0,null,{"$f":"+IF($D70=\"\",\"\",IF($D70=0,\"rate only\",$D70*(E70)))","v":"rate only"}]
[]
[]
[null,"REMOVAL OF EXISTING CONCRETE WORK"]
[]
[null,"Break up and removing mass concrete"]
[]
["B1.3","Surface beds, slabs, etc.","m³",0,null,{"$f":"+IF($D77=\"\",\"\",IF($D77=0,\"rate only\",$D77*(E77)))","v":"rate only"}]
[]
["B1.4","Strip footings, bases, etc.","m³",0,null,{"$f":"+IF($D79=\"\",\"\",IF($D79=0,\"rate only\",$D79*(E79)))","v":"rate only"}]
[]
[null,"Break up and removing reinforced concrete including cutting off and removing reinforcement:"]
[]
["B1.5","Surface beds, slabs, beams, stairs and landings, columns, ramps, etc.","m³",0,null,{"$f":"+IF($D83=\"\",\"\",IF($D83=0,\"rate only\",$D83*(E83)))","v":"rate only"}]
[]
[]
[null,"CUTTING THROUGH FLOORS AND CEILING"]
[]
["B1.6","Cutting through 100mm thick mesh reinforced concrete apron slab as necessary for installation of new 110mm diameter sewer drain pipe including making good concrete","m",0,null,{"$f":"+IF($D88=\"\",\"\",IF($D88=0,\"rate only\",$D88*(E88)))","v":"rate only"}]
[]
["B1.7","Cutting through 100mm thick mesh reinforcement concrete surface bed for 500mm wide concrete wall footing including making good concrete on both sides of new half brick wall","m",0,null,{"$f":"+IF($D90=\"\",\"\",IF($D90=0,\"rate only\",$D90*(E90)))","v":"rate only"}]
[]
[null,"Repair to cracks in concrete floors:"]
[]
["B1.8","Cut out crack in concrete floor 10mm wide x 25mm deep, wh instructed with square edges, clean out and fill with Pro-Strict 524'' epoxy mortar or similar approved.","m",0,null,{"$f":"+IF($D94=\"\",\"\",IF($D94=0,\"rate only\",$D94*(E94)))","v":"rate only"}]
[]
[]
[null,"PREPARATORY WORK TO EXISTING CONCRETE SURFACES"]
[]
[null,"Preparation to existing vertical surfaces:"]
[]
["B1.9","Hack face of existing concrete columns, beams, etc. to receive plaster (elsewh measured).","m²",0,null,{"$f":"+IF($D101=\"\",\"\",IF($D101=0,\"rate only\",$D101*(E101)))","v":"rate only"}]
[]
[]
[null,"REMOVAL OF EXISTING BRICKWORK "]
[]
[null,"Breaking down and removing brickwork etc.:"]
[]
["B1.10","Half brick walls.","m²",0,null,{"$f":"+IF($D108=\"\",\"\",IF($D108=0,\"rate only\",$D108*(E108)))","v":"rate only"}]
[]
["B1.11","One brick walls.","m²",0,null,{"$f":"+IF($D110=\"\",\"\",IF($D110=0,\"rate only\",$D110*(E110)))","v":"rate only"}]
[]
[null,"Hacking up/off and removing granolithic screed, plaster, etc., from concrete or brickwork and prepare surfaces, for new screed, plaster etc. "]
[]
["B1.12","Hack up/off and remove existing screed from floors (new screed elm)","m²",0,null,{"$f":"+IF($D114=\"\",\"\",IF($D114=0,\"rate only\",$D114*(E114)))","v":"rate only"}]
[]
["B1.13","Hack up/off and remove existing plaster from walls (new plaster elsewh measured)","m²",0,null,{"$f":"+IF($D116=\"\",\"\",IF($D116=0,\"rate only\",$D116*(E116)))","v":"rate only"}]
[]
[]
[null,"REMOVAL OF EXISTING CEILINGS, PARTITIONING AND FLOORING"]
[]
[null,"Taking down and removing ceiling, partitioning, and flooring etc."]
[]
["B1.14","Gypsum plasterboard or fibre cement ceilings including cornices, cover strips, timber rendering, etc.","m²",0,null,{"$f":"+IF($D123=\"\",\"\",IF($D123=0,\"rate only\",$D123*(E123)))","v":"rate only"}]
[]
["B1.15","Acoustic tile suspended ceiling including suspension grid, hangers, etc.","m²",0,null,{"$f":"+IF($D125=\"\",\"\",IF($D125=0,\"rate only\",$D125*(E125)))","v":"rate only"}]
[]
["B1.16","Drywall boarding and studwork, including doors, ironmongery, windows, etc.","m²",0,null,{"$f":"+IF($D127=\"\",\"\",IF($D127=0,\"rate only\",$D127*(E127)))","v":"rate only"}]
[]
[null,"19 x 44mm Timber cornice and prepare surface to receive new (elsewh measured).","m",0,null,{"$f":"+IF($D129=\"\",\"\",IF($D129=0,\"rate only\",$D129*(E129)))","v":"rate only"}]
[]
[]
[null,"PLASTER CRACK REPAIRS"]
[]
[null,"Repairs to cracks in existing plaster"]
[]
["B1.17","Cut out plaster at crack on vertical wall or beam face for full depth and minimum 5mm to maximum 10mm wide, prepare and fill with ''Sikacryl'' or other approved acrylic sealant to finish flush.","m",0,null,{"$f":"+IF($D136=\"\",\"\",IF($D136=0,\"rate only\",$D136*(E136)))","v":"rate only"}]
[]
["B1.18","Chase out cracks in top of surface bed to form groove 100mm wide and 50mm deep and fill with 1:4 cement mortar, including finishing smooth with a steel trowel to match existing level.","m",0,null,{"$f":"+IF($D138=\"\",\"\",IF($D138=0,\"rate only\",$D138*(E138)))","v":"rate only"}]
[]
[]
[null,"REMOVAL OF EXISTING FLOOR COVERINGS"]
[]
[null,"Taking up and removing vinyl floor coverings, carpeting, suspended floor etc.:"]
[]
["B1.19","Carpet tile floor covering including preparing screed for new floor finish ","m²",0,null,{"$f":"+IF($D145=\"\",\"\",IF($D145=0,\"rate only\",$D145*(E145)))","v":"rate only"}]
[]
[]
[null,"REMOVAL OF EXISTING TILING"]
[]
[null,"Hacking up/off and removing tiled floor and wall finishes including removing mortar bed or backing and preparing concrete or brick surfaces for new finishes (elsewh measured)"]
[]
["B1.20","30mm thick Ceramic tiles and plaster to walls .","m²",0,null,{"$f":"+IF($D152=\"\",\"\",IF($D152=0,\"rate only\",$D152*(E152)))","v":"rate only"}]
[]
["B1.21","30mm thick Ceramic wall tiles from timber or drywall cladding","m²",0,null,{"$f":"+IF($D154=\"\",\"\",IF($D154=0,\"rate only\",$D154*(E154)))","v":"rate only"}]
[]
["B1.22","30mm thick Ceramic tiles and screed to floors","m²",0,null,{"$f":"+IF($D156=\"\",\"\",IF($D156=0,\"rate only\",$D156*(E156)))","v":"rate only"}]
[]
["B1.23","30mm thick Ceramic tiles and screed to treads and risers of stairs","m²",0,null,{"$f":"+IF($D158=\"\",\"\",IF($D158=0,\"rate only\",$D158*(E158)))","v":"rate only"}]
[]
["B1.24","20mm thick Quarry tiles to floors.","m²",0,null,{"$f":"+IF($D160=\"\",\"\",IF($D160=0,\"rate only\",$D160*(E160)))","v":"rate only"}]
[]
["B1.25","25mm thick Slate paving to floors.","m²",0,null,{"$f":"+IF($D162=\"\",\"\",IF($D162=0,\"rate only\",$D162*(E162)))","v":"rate only"}]
[]
["B1.26","Mosaic tiles and screed to floors ","m²",0,null,{"$f":"+IF($D164=\"\",\"\",IF($D164=0,\"rate only\",$D164*(E164)))","v":"rate only"}]
[]
["B1.27","Ceramic tile skirting's from wall","m",0,null,{"$f":"+IF($D166=\"\",\"\",IF($D166=0,\"rate only\",$D166*(E166)))","v":"rate only"}]
[]
[]
[null,"REMOVAL OF EXISTING GLAZING"]
[]
[null,"Taking out and removing glass and mirrors"]
[]
["B1.28","Glass from steel windows including cleaning out rebates and preparing for new glass (elsewh measured)","m²",0,null,{"$f":"+IF($D173=\"\",\"\",IF($D173=0,\"rate only\",$D173*(E173)))","v":"rate only"}]
[]
["B1.29","Glass from timber windows with beads including cleaning out rebates and preparing for new glass (elsewh measure)","m²",0,null,{"$f":"+IF($D175=\"\",\"\",IF($D175=0,\"rate only\",$D175*(E175)))","v":"rate only"}]
[]
["B1.30","Glass from aluminium windows with beads including cleaning out rebates and preparing for new glass (elsewh measure)","m²",0,null,{"$f":"+IF($D177=\"\",\"\",IF($D177=0,\"rate only\",$D177*(E177)))","v":"rate only"}]
[]
[null,"Break out for and form opening through brick wall for door frame including precast or concrete lintels, making good plaster or facings on one or both sides, into reveals and 30mm grana thresholds with three readings, 100mm wide."]
[]
["B1.31","Opening for door not exceeding 2.5 m2 in half brick wall.","No.",0,null,{"$f":"+IF($D181=\"\",\"\",IF($D181=0,\"rate only\",$D181*(E181)))","v":"rate only"}]
[]
["B1.32","Opening for door exceeding 2.5m2 and exceeding 5m2 in half brick wall.","No.",0,null,{"$f":"+IF($D183=\"\",\"\",IF($D183=0,\"rate only\",$D183*(E183)))","v":"rate only"}]
[]
["B1.33","Opening for door exceeding 2.5m2 in one brick wall.","No.",0,null,{"$f":"+IF($D185=\"\",\"\",IF($D185=0,\"rate only\",$D185*(E185)))","v":"rate only"}]
[]
["B1.34","Opening for door exceeding 2.5m2 and not exceeding 5m2 in one brick wall.","No.",0,null,{"$f":"+IF($D187=\"\",\"\",IF($D187=0,\"rate only\",$D187*(E187)))","v":"rate only"}]
[]
[]
[null,"REMOVAL OF EXISTING DOORS, WINDOWS, ETC. FROM BRICKWORK"]
[]
[null,"Taking out and removing doors, windows, etc. from brickwork to be demolished:"]
[]
["B1.35","Timber single door and frame not exceeding 2.5m2.","No",0,null,{"$f":"+IF($D194=\"\",\"\",IF($D194=0,\"rate only\",$D194*(E194)))","v":"rate only"}]
[]
["B1.36","Aluminium single door and frame not exceeding 2.5m2.","No",0,null,{"$f":"+IF($D196=\"\",\"\",IF($D196=0,\"rate only\",$D196*(E196)))","v":"rate only"}]
[]
["B1.37","Timber double door and frame exceeding 2.5m2 and not exceeding 5m2.","No",0,null,{"$f":"+IF($D198=\"\",\"\",IF($D198=0,\"rate only\",$D198*(E198)))","v":"rate only"}]
[]
["B1.38","Aluminium double door and frame exceeding 2.5m2 and not exceeding 5m2.","No",0,null,{"$f":"+IF($D200=\"\",\"\",IF($D200=0,\"rate only\",$D200*(E200)))","v":"rate only"}]
[]
[]
[null,"BUILDING UP OPENINGS"]
[]
[null,"Brickwork in NFP bricks in cement mortar in building up openings including plaster both sides:"]
[]
["B1.39","Half brick walls.","m²",0,null,{"$f":"+IF($D207=\"\",\"\",IF($D207=0,\"rate only\",$D207*(E207)))","v":"rate only"}]
[]
["B1.40","One brick walls.","m²",0,null,{"$f":"+IF($D209=\"\",\"\",IF($D209=0,\"rate only\",$D209*(E209)))","v":"rate only"}]
[]
[]
[null,"REMOVE ASBESTOS CEMENT"]
[]
[null,"Note: "]
[]
[null,"All preparatory work, alterations, demolitions, etc. to existing asbestos cement roof sheeting, gutters, rainwater pipes, etc. is to be carried out strictly in accordance with statutory requirements (Occupational Health and Safety Act, 1993- Asbestos Regulations, 2001) and all necessary precautions must be taken when work with and disposing of asbestos cement products and the disposing of waste water resulting from cleaning operations, etc."]
[null,"Overtime work and normal work:"]
[]
[null,"The tenderers are advised that the following works may be done during normal working hours as well as after normal working hours. Tenderers must make due allowance for these working hours in the pricing as no claims will be entertained in this regard."]
[]
["B1.41","To remove  asbestos roof sheets.","m²",0,null,{"$f":"+IF($D221=\"\",\"\",IF($D221=0,\"rate only\",$D221*(E221)))","v":"rate only"}]
[]
["B1.42","To remove  asbestos  fascia, badge boards,","m",0,null,{"$f":"+IF($D223=\"\",\"\",IF($D223=0,\"rate only\",$D223*(E223)))","v":"rate only"}]
[]
["B1.43","To remove  asbestos downpipes .","m",0,null,{"$f":"+IF($D225=\"\",\"\",IF($D225=0,\"rate only\",$D225*(E225)))","v":"rate only"}]
[]
["B1.44","To remove  asbestos gutters","m",0,null,{"$f":"+IF($D227=\"\",\"\",IF($D227=0,\"rate only\",$D227*(E227)))","v":"rate only"}]
[]
[]
[null," PLUMBING AND DRAINAGE MAINTENANCE"]
[]
[null,"PRICING OF RATES"]
[]
[null,"All rates inserted in the Bills of Quantities shall cover all costs, charges and profit that may be considd necessary for the carrying out and observance for the provisions of these \"Preambles to all Trades\"."]
[]
[null,"The Tenderer shall insert the amount required against each item which he wishes to price and not insert a lump sum covering a series of items. Only such priced items shall be considd in respect of any adjustment to the Contract Sum.  Items left unpriced will be understood to be covd in the rates for other items throughout these Bills of Quantities."]
[]
[null,"The Tenderer must refer to the Schedule of Rates Pricelistand ensure the required skill profile for this Pricelistis utilised when carrying out works on site. Tenderers must make due allowance for this in their rates and no claims will be entertained in this regard after contract award."]
[]
[null,"Overtime work and normal work:"]
[]
[null,"The Tenderers are advised that the following works may be done during normal working hours as well as after normal working hours. Tenderers must make due allowance for these working hours in the pricing as no claims will be entertained in this regard."]
[]
[]
[null,"MAINTENANCE OF EXISTING WATER SUPPLY AND FITTINGS"]
[]
[null,"Plumbing Maintenance"]
[]
["B1.45","Unblock urinal trap","No.",0,null,{"$f":"+IF($D249=\"\",\"\",IF($D249=0,\"rate only\",$D249*(E249)))","v":"rate only"}]
[]
["B1.46","Replace 15mm chromium plate tap heads.","No.",0,null,{"$f":"+IF($D251=\"\",\"\",IF($D251=0,\"rate only\",$D251*(E251)))","v":"rate only"}]
[]
["B1.47","Replace ball valve complete with and including Cobra No. 700 Float valve and plastic ball","No.",0,null,{"$f":"+IF($D253=\"\",\"\",IF($D253=0,\"rate only\",$D253*(E253)))","v":"rate only"}]
[]
["B1.48","Replace symphonic cistern valve with Cobra No. 780-235 symphonic flushing valve unit complete with handle, cap and back nuts and flush pipe","No.",0,null,{"$f":"+IF($D255=\"\",\"\",IF($D255=0,\"rate only\",$D255*(E255)))","v":"rate only"}]
[]
["B1.49","Replace flush pipe rubber between cistern and pan","No.",0,null,{"$f":"+IF($D257=\"\",\"\",IF($D257=0,\"rate only\",$D257*(E257)))","v":"rate only"}]
[]
["B1.50","Refax cistern to wall including 6mm raw bolts","No.",0,null,{"$f":"+IF($D259=\"\",\"\",IF($D259=0,\"rate only\",$D259*(E259)))","v":"rate only"}]
[]
["B1.51","Remove and replace pan connector","No.",0,null,{"$f":"+IF($D261=\"\",\"\",IF($D261=0,\"rate only\",$D261*(E261)))","v":"rate only"}]
[]
["B1.52","Refix basin to wall including 6mm raw bolts","No.",0,null,{"$f":"+IF($D263=\"\",\"\",IF($D263=0,\"rate only\",$D263*(E263)))","v":"rate only"}]
[]
[]
[null,"MAINTENANCE OF EXISTING STORMWATER"]
[]
[null,"Rodding"]
[]
["B1.53","Allow for rodding storm water line (100mm-200mm)","m",0,null,{"$f":"+IF($D270=\"\",\"\",IF($D270=0,\"rate only\",$D270*(E270)))","v":"rate only"}]
[]
["B1.54","Allow for cleaning storm water inspection chamber ","No.",0,null,{"$f":"+IF($D272=\"\",\"\",IF($D272=0,\"rate only\",$D272*(E272)))","v":"rate only"}]
[]
[]
[null,"MAINTENANCE OF EXISTING SEWER"]
[]
[null,"Rodding"]
[]
["B1.55","Allow for rodding sewer line (100mm-200mm)","m",0,null,{"$f":"+IF($D279=\"\",\"\",IF($D279=0,\"rate only\",$D279*(E279)))","v":"rate only"}]
[]
["B1.56","Allow for cleaning sewer inspection chamber","No.",0,null,{"$f":"+IF($D281=\"\",\"\",IF($D281=0,\"rate only\",$D281*(E281)))","v":"rate only"}]
[]
[]
[null,"MAINTENANCE OF EXISTING RAINWATER GOODS"]
[]
[null,"Cleaning out rainwater goods"]
[]
["B1.57","Clean out of all gutters/downpipes/valleys, up to 4m high from ground level.","m",0,null,{"$f":"+IF($D288=\"\",\"\",IF($D288=0,\"rate only\",$D288*(E288)))","v":"rate only"}]
[]
[]
[null,"TANKS ETC:"]
[]
["B1.58","Replace (supply and fit) 2500 litre Heavy Duty Vertical 'JO-JO' or other approved water Tank","No",0,null,{"$f":"+IF($D293=\"\",\"\",IF($D293=0,\"rate only\",$D293*(E293)))","v":"rate only"}]
[]
["B1.59","Replace (supply and fit) 5000 litre Heavy Duty Vertical 'JO-JO' or other approved water Tank","No",0,null,{"$f":"+IF($D295=\"\",\"\",IF($D295=0,\"rate only\",$D295*(E295)))","v":"rate only"}]
[]
["B1.60","Replace (supply and fit) 10000 litre Heavy Duty Vertical 'JO-JO' or other approved water Tank","No",0,null,{"$f":"+IF($D297=\"\",\"\",IF($D297=0,\"rate only\",$D297*(E297)))","v":"rate only"}]
[]
[null,"ELECTRICAL ALTERATIONS"]
[]
[null,"Removal of existing electrical installation items:"]
[]
["B1.61","Carefully disconnect and cut through and remove pvc conduit pipe and cabling from timber roof trusses. (no making good)","m",0,null,{"$f":"+IF($D303=\"\",\"\",IF($D303=0,\"rate only\",$D303*(E303)))","v":"rate only"}]
[]
["B1.62","Carefully disconnect and cut through and remove 75mm diameter galvanised surface mounted pipe conduits and cabling from wall and making good","m",0,null,{"$f":"+IF($D305=\"\",\"\",IF($D305=0,\"rate only\",$D305*(E305)))","v":"rate only"}]
[]
["B1.63","Carefully disconnect and remove plug socket from recessed plug box (switch box to remain)","No.",0,null,{"$f":"+IF($D307=\"\",\"\",IF($D307=0,\"rate only\",$D307*(E307)))","v":"rate only"}]
[]
["B1.64","Carefully disconnect and remove light switch from recessed plug box (switch box to remain)","No.",0,null,{"$f":"+IF($D309=\"\",\"\",IF($D309=0,\"rate only\",$D309*(E309)))","v":"rate only"}]
[]
["B1.65","Disconnect and remove 1500mm long two tube fluorescent fitting and lamps.","No.",0,null,{"$f":"+IF($D311=\"\",\"\",IF($D311=0,\"rate only\",$D311*(E311)))","v":"rate only"}]
[]
[null,"DEMOLISH EXISTING STRUCTURAL COMPONENTS"]
[]
["B1.66","Take out and remove existing mesh wire fence complete with 1800mm x 100mm diameter gumpole supports at 3m centres and, grubbing up and removing any concrete bases, etc including filling with selected material and compacting to 95% Mod Aashto maximum density.","m",0,null,{"$f":"+IF($D315=\"\",\"\",IF($D315=0,\"rate only\",$D315*(E315)))","v":"rate only"}]
[]
[null,"ROADWORKS"]
[null,"PREAMBLES"]
[]
[null,"The Tenderer is referred to the relevant clauses in the latest edition of the Model Preambles for Trades and to the Supplementary Preambles"]
[]
[]
[null,"SUPPLEMENTARY PREAMBLES"]
[]
[null,"Items, materials or methods to be used to be specified by trade names or catalogue numbers are only an indication of the quality required. Items, materials or methods of similar quality may be used with prior approval from the Eskom Transmission Official."]
[]
[null,"Work described as 'remove' or 'removed' shall be expeditiously, permanently removed from the site."]
[]
[null,"The Tenderer must acquaint himself with the nature of material to be excavated."]
[]
[null,"Descriptions for excavations shall be deemed to include all ground conditions classifiable as 'earth' described in the above report and wh conditions of a more difficult character are indicated these will be separately measured."]
[]
[null,"The Contractor is to submit a detailed method statement to the Site Supervisor  for approval prior to undertaking this work."]
[]
[null,"SOIL POISONING:"]
[]
[null,"Approved brand of anti-termite soil poison applied by a Registd Pest Control company and guaranteed against termite infestation for ten years:"]
[]
["B1.67","Under concrete interlocking paving blocks including forming and poisoning shallow furrows against edges, etc., filling in furrows and ramming.","m2",{"v":0,"d":"0.00"},null,{"$f":"+IF($D339=\"\",\"\",IF($D339=0,\"rate only\",$D339*(E339)))","v":"rate only"}]
[]
[null,"Weedkiller:"]
[]
["B1.68"," 'Weedmaster Turfmaster' or equal approved weed killer mixed in the proportion of 1 litre weed killer to 50 litres of water and applied at a rate of 0,5 litres/m2 to surface below paving","m2",{"v":0,"d":"0.00"},null,{"$f":"+IF($D343=\"\",\"\",IF($D343=0,\"rate only\",$D343*(E343)))","v":"rate only"}]
[]
[null,"REMOVAL OF EXISTING BOND AND INTERLOCKING CONCRETE BLOCK PAVERS"]
[]
[null,"Carefully remove precast concrete block road surfacing and set aside for re-use"]
[]
["B1.69","Carefully remove 80mm G-block paving to sidewalks and pathways to falls.","m²",0,null,{"$f":"+IF($D349=\"\",\"\",IF($D349=0,\"rate only\",$D349*(E349)))","v":"rate only"}]
[]
["B1.70","Carefully remove 80mm paving around the buildings to falls.","m²",0,null,{"$f":"+IF($D351=\"\",\"\",IF($D351=0,\"rate only\",$D351*(E351)))","v":"rate only"}]
[]
["B1.71","Carefully remove 80mm paving to roads and parking areas to falls.","m²",0,null,{"$f":"+IF($D353=\"\",\"\",IF($D353=0,\"rate only\",$D353*(E353)))","v":"rate only"}]
[]
[null,"REMOVE EXISTING PRECAST CONCRETE KERBING"]
[]
["B1.72","Carefully remove 125mm x 230mm high Kerb fig 6.","m",0,null,{"$f":"+IF($D357=\"\",\"\",IF($D357=0,\"rate only\",$D357*(E357)))","v":"rate only"}]
[]
["B1.73","Carefully remove 125mm x 230mm high Kerb fig 6 circular to radius exceeding 4m.","m",0,null,{"$f":"+IF($D359=\"\",\"\",IF($D359=0,\"rate only\",$D359*(E359)))","v":"rate only"}]
[]
["B1.74","Carefully remove Kerb with 300mm x 100mm strip foundation and 150mm x 150mm haunching at back.","m",0,null,{"$f":"+IF($D361=\"\",\"\",IF($D361=0,\"rate only\",$D361*(E361)))","v":"rate only"}]
[]
["B1.75","Carefully remove 125mm x 230mm high Kerb fig 6 and 300mm x 170mm thick channel.","m",0,null,{"$f":"+IF($D363=\"\",\"\",IF($D363=0,\"rate only\",$D363*(E363)))","v":"rate only"}]
[]
["B1.76","Carefully remove 125mm x 230mm high Kerb fig 6 and 300mm x 170mm thick channel circular to radius exceeding 4m.","m",0,null,{"$f":"+IF($D365=\"\",\"\",IF($D365=0,\"rate only\",$D365*(E365)))","v":"rate only"}]
[]
["B1.77","Carefully remove 125mm x 230mm kerb fig 6 and 400mm x 170mm thick channel","m",0,null,{"$f":"+IF($D367=\"\",\"\",IF($D367=0,\"rate only\",$D367*(E367)))","v":"rate only"}]
[]
["B1.78","Carefully remove 125mm x 230mm high Kerb fig 6 and 600mm x 170mm thick channel.","m",0,null,{"$f":"+IF($D369=\"\",\"\",IF($D369=0,\"rate only\",$D369*(E369)))","v":"rate only"}]
[]
[null,"BREAK UP AND REMOVING OF EXISTING CAST CONCRETE ANCHOR BLOCKS"]
[]
["B1.79","Break up and remove In-situ Concrete Anchor Block In Block Paving.","m3",0,null,{"$f":"+IF($D373=\"\",\"\",IF($D373=0,\"rate only\",$D373*(E373)))","v":"rate only"}]
[]
["B1.80","Allow for clearing, cleaning rubbish, rubble created by other contractors","m3",0,null,{"$f":"+IF($D375=\"\",\"\",IF($D375=0,\"rate only\",$D375*(E375)))","v":"rate only"}]
[]
[]
[]
[]
[]
[]
[null,"Sub-Total",null,null,{"$f":"SUM(E12:E297)","v":0}]
[]
[null,"NO.2 : EARTHWORKS"]
[]
[null,"PREAMBLES"]
[]
[null,"The Tenderer is referred to the relevant clauses in the latest edition of the Model Preambles for Trades and to the Supplementary Preambles."]
[]
[]
[null,"SUPPLEMENTARY PREAMBLES"]
[]
[null,"Nature of ground:"]
[]
[null,"The Tenderer must acquaint himself with the nature of the material to be excavated."]
[null,"The nature of the ground is assumed to be medium, dense and very dense material, thfore earth, but possibly interspersed with \"hard rock\" or \"intermediate material\"."]
[]
[null,"A soils investigation has not been carried out on site by the Engineer and the report is not annexed to the back of these bills of quantities. Descriptions of excavations shall be deemed to include all ground conditions classifiable as \"earth\" described in the above report and wh conditions of a more difficult character are indicated these are separately measured."]
[]
[null,"Carting away of excavated material:"]
[]
[null,"Descriptions of carting away of excavated material shall be deemed to include loading excavated material onto trucks directly from the excavations or, alternatively, from stock piles situated on the building site."]
[]
[null,"Subterranean Water:"]
[]
[null,"The contractor must keep proper records for all dewatering and these records must be signed by the Eskom  Service Manager/ Supervisor on a weekly basis so that payments can be effected. If this process is not followed, this work will be provided free of charge."]
[]
[]
[null,"SITE CLEARANCE, ETC"]
[]
["B2.1","Allow for clearing the site as required and cart away all vegetation and debris.","m²",0,null,{"$f":"+IF($D411=\"\",\"\",IF($D411=0,\"rate only\",$D411*(E411)))","v":"rate only"}]
[]
[]
[null,"EXCAVATIONS OTHER THAN BULK"]
[]
[null,"Excavation in earth not exceeding 2m deep and stock pile on site, including keeping excavations free of water, risk of collapse"]
[]
["B2.2","Reduced levels under floors","m³",0,null,{"$f":"+IF($D418=\"\",\"\",IF($D418=0,\"rate only\",$D418*(E418)))","v":"rate only"}]
[]
["B2.3","Trenches, bases, holes","m³",0,null,{"$f":"+IF($D420=\"\",\"\",IF($D420=0,\"rate only\",$D420*(E420)))","v":"rate only"}]
[]
[null,"Extra over trench and hole excavations in earth for excavation in:"]
[]
["B2.4","Intermediate material.","m³",0,null,{"$f":"+IF($D424=\"\",\"\",IF($D424=0,\"rate only\",$D424*(E424)))","v":"rate only"}]
[]
["B2.5","Hard rock material.","m³",0,null,{"$f":"+IF($D426=\"\",\"\",IF($D426=0,\"rate only\",$D426*(E426)))","v":"rate only"}]
[]
[null,"Extra over all excavations for carting away:"]
[]
["B2.6","Surplus material from excavations and/or stock piles on site to a dumping site to be located by the contractor","m³",0,null,{"$f":"+IF($D430=\"\",\"\",IF($D430=0,\"rate only\",$D430*(E430)))","v":"rate only"}]
[]
[]
[null,"COMPACTION"]
[]
[null,"Compaction of surfaces:"]
[]
["B2.7","Rip and scarify to a depth of 200mm, level and compact earth surface under floor to density of at least 85% Mod. AASHTO density.","m²",0,null,{"$f":"+IF($D437=\"\",\"\",IF($D437=0,\"rate only\",$D437*(E437)))","v":"rate only"}]
[]
[]
[null,"FILLING ETC."]
[]
[null,"Garden soil filling supplied by the Contractor (not compacted):"]
[]
["B2.8","In general areas","m³",0,null,{"$f":"+IF($D444=\"\",\"\",IF($D444=0,\"rate only\",$D444*(E444)))","v":"rate only"}]
[]
[null,"Selected earth filling obtained from the excavations and/or prescribed stock piles on site compacted in 150mm layers to 98% Mod. AASHTO density:"]
[]
["B2.9","Under floors, paving's, etc.","m³",0,null,{"$f":"+IF($D448=\"\",\"\",IF($D448=0,\"rate only\",$D448*(E448)))","v":"rate only"}]
[]
["B2.10","Backfilling to trenches, bases, holes, etc.","m³",0,null,{"$f":"+IF($D450=\"\",\"\",IF($D450=0,\"rate only\",$D450*(E450)))","v":"rate only"}]
[]
[null,"Filling of river sand:"]
[]
["B2.11","Where required","m³",0,null,{"$f":"+IF($D454=\"\",\"\",IF($D454=0,\"rate only\",$D454*(E454)))","v":"rate only"}]
[]
[]
[null,"SUBFLOOR DRAINAGE"]
[]
[null,"Subfloor drainage:"]
[]
["B2.12","110mm Slotted uPVC agriculture pipes laid in trench in fill under floors (fill elsewh) including 19mm crushed stone encasing size 200 x 200mm and 'Bedim U14' geofabric filter blanket wrapped around encasing with 150mm side and 300mm end laps including stitching.","m",0,null,{"$f":"+IF($D461=\"\",\"\",IF($D461=0,\"rate only\",$D461*(E461)))","v":"rate only"}]
[]
[]
[null,"SOIL POISONING"]
[]
[null,"Approved brand of anti-termite soil poison applied by a Registd Pest Control company and guaranteed against termite infestation for ten years"]
[]
["B2.13","Under floors, bases, holes, etc","m²",0,null,{"$f":"+IF($D468=\"\",\"\",IF($D468=0,\"rate only\",$D468*(E468)))","v":"rate only"}]
[]
[null,"Sub-Total",null,null,{"$f":"SUM(E388:E468)","v":0}]
[]
[null,"NO.3 : CONCRETE, FORMWORK AND REINFORCEMENT (PROVISIONAL)"]
[]
[null,"PREAMBLES"]
[]
[null,"The Tenderer is referred to the relevant clauses in the latest edition of the Model Preambles for Trades and to the Supplementary Preambles"]
[]
[null,"SUPPLEMENTARY PREAMBLES"]
[]
[null,"SANS Standards:"]
[]
[null,"All concrete work is to be in accordance with the relevant sections of SANS 1200"]
[]
[null,"Cost of tests"]
[]
[null,"Descriptions of concrete items shall be deemed to include for all necessary testing of concrete components and trial mixes "]
[]
[null,"Testing of concrete strength test cubes is measured separately in an inclusive item. The Contractor shall make an assessment of all testing required and include the cost in the item rate"]
[]
[null,"The costs of making, storing and testing of concrete test cubes as required under clause 7 \"Tests\" of SABS 1200 G shall include the cost of providing cube moulds necessary for the purpose, for testing costs and for submitting reports on the tests to the Eskom Service Manager/ Supervisor.  The testing shall be undertaken by an independent firm or institution nominated by the contractor to the approval of the Eskom Service Manager/ Supervisor.  (Test cubes are measured separately)"]
[]
[null,"Formwork"]
[]
[null,"Description of formwork shall be deemed to include use and waste only (except wh described as \"left in\" or \"permanent\"), for fitting together in the required forms, wedging, plumbing and fixing to true angles and surfaces as necessary to ensure easy release during stripping and for reconditioning as necessary before re-use"]
[]
[null,"The vertical strutting shall be carried down to such construction as is sufficiently strong to afford the required support without damage and shall remain in position until the newly constructed work is able to support itself."]
[]
[null,"Formworks to soffits of solid etc shall be deemed to be slabs not exceeding 250mm thick unless otherwise described"]
[]
[null,"Formwork to sides of bases, pile caps, ground beams, etc will only be measured wh it is prescribed by the engineer for design reasons.  Formwork necessitated by irregularity or collapse of excavated faces will not be measured and the cost thof shall be deemed to be included in the allowance for taking the risk of collapse of the sides of the excavations, provision for which is made in \"Earthworks\""]
[]
[null,"Holding down bolts:"]
[]
[null,"Holding down bolts are to be handed over from steel fabricator to the contractor to be bedded into concrete."]
[]
[null,"Unreinforced concrete cast against excavated services"]
[]
["B3.1","15Mpa/19mm  under bases, holes, floors etc","m³",0,null,{"$f":"+IF($D508=\"\",\"\",IF($D508=0,\"rate only\",$D508*(E508)))","v":"rate only"}]
[]
["B3.2","25mpa/19mm  under bases , holes, floors etc.","m³",0,null,{"$f":"+IF($D510=\"\",\"\",IF($D510=0,\"rate only\",$D510*(E510)))","v":"rate only"}]
[]
[]
[null,"VIBRATED REINFORCED CONCRETE INCLUDING NECESSARY FORMWORK"]
[null,"Class 25MPa/19mm concrete:"]
[]
["B3.3","Surface beds, ramps, strip footings, bases, holes  etc","m³",0,null,{"$f":"+IF($D516=\"\",\"\",IF($D516=0,\"rate only\",$D516*(E516)))","v":"rate only"}]
[]
["B3.4","Walls","m³",0,null,{"$f":"+IF($D518=\"\",\"\",IF($D518=0,\"rate only\",$D518*(E518)))","v":"rate only"}]
[]
["B3.5","Columns. ","m³",0,null,{"$f":"+IF($D520=\"\",\"\",IF($D520=0,\"rate only\",$D520*(E520)))","v":"rate only"}]
[]
["B3.6","Stairs and landings","m³",0,null,{"$f":"+IF($D522=\"\",\"\",IF($D522=0,\"rate only\",$D522*(E522)))","v":"rate only"}]
[]
[null,"Class 30MPa/19mm concrete:"]
[]
["B3.7","Surface beds, ramps, strip footings, bases, holes  etc","m³",0,null,{"$f":"+IF($D526=\"\",\"\",IF($D526=0,\"rate only\",$D526*(E526)))","v":"rate only"}]
[]
["B3.8","Walls","m³",0,null,{"$f":"+IF($D528=\"\",\"\",IF($D528=0,\"rate only\",$D528*(E528)))","v":"rate only"}]
[]
["B3.9","Columns. ","m³",0,null,{"$f":"+IF($D530=\"\",\"\",IF($D530=0,\"rate only\",$D530*(E530)))","v":"rate only"}]
[]
["B3.10","Stairs and landings","m³",0,null,{"$f":"+IF($D532=\"\",\"\",IF($D532=0,\"rate only\",$D532*(E532)))","v":"rate only"}]
[]
[null,"Test blocks "]
[]
["B3.11","Allow for all necessary concrete test cubes size 150 x 150 x 150mm cast from batches of concrete required for this contract as specified, made, stored, cured and tested in accordance with SANS Methods 861 and 863, including use of approved cube moulds, transporting to an approved testing laboratory for testing, paying all charges and submitting reports to the Eskom Service Manager/ Supervisor.","Item",0,null,{"$f":"+IF($D536=\"\",\"\",IF($D536=0,\"rate only\",$D536*(E536)))","v":"rate only"}]
[]
[]
[null,"FINISHING TOP SURFACE OF CONCRETE"]
[]
[null,"Finishing top surfaces of concrete smooth with a broom finish / wood float / steel float finish"]
[]
["B3.12","Surface beds, ramps,aprons etc","m²",0,null,{"$f":"+IF($D543=\"\",\"\",IF($D543=0,\"rate only\",$D543*(E543)))","v":"rate only"}]
[]
[]
[null,"MOVEMENT JOINTS ETC"]
[]
[null,"Expansion joints with Bitumen impregnated softboard between vertical concrete and brick surfaces"]
[]
["B3.13","10mm Joints not exceeding 300mm high","m",0,null,{"$f":"+IF($D550=\"\",\"\",IF($D550=0,\"rate only\",$D550*(E550)))","v":"rate only"}]
[]
[null,"Saw cut joints:"]
[]
["B3.14","3.2 x 35mm Saw cut joints in top of concrete.","m",0,null,{"$f":"+IF($D554=\"\",\"\",IF($D554=0,\"rate only\",$D554*(E554)))","v":"rate only"}]
[]
["B3.15","6 x 38mm Saw cut joints in top of concrete","m",0,null,{"$f":"+IF($D556=\"\",\"\",IF($D556=0,\"rate only\",$D556*(E556)))","v":"rate only"}]
[]
[]
[null,"REINFORCEMENT"]
[]
[null,"High tensile steel reinforcement to structural concrete work:"]
[]
["B3.16","Various diameter bars.","Tonnes",0,null,{"$f":"+IF($D563=\"\",\"\",IF($D563=0,\"rate only\",$D563*(E563)))","v":"rate only"}]
[]
[null,"Mild steel reinforcement to structural concrete work:"]
[]
["B3.17","Various diameter bars.","Tonnes",0,null,{"$f":"+IF($D567=\"\",\"\",IF($D567=0,\"rate only\",$D567*(E567)))","v":"rate only"}]
[]
[null,"Fabric reinforcement"]
[]
["B3.18","Type 193 fabric reinforcement in various areas","m²",0,null,{"$f":"+IF($D571=\"\",\"\",IF($D571=0,\"rate only\",$D571*(E571)))","v":"rate only"}]
[]
["B3.19","Type 245 fabric reinforcement in various areas","m²",0,null,{"$f":"+IF($D573=\"\",\"\",IF($D573=0,\"rate only\",$D573*(E573)))","v":"rate only"}]
[]
["B3.20","Type 395 fabric reinforcement in various","m²",0,null,{"$f":"+IF($D575=\"\",\"\",IF($D575=0,\"rate only\",$D575*(E575)))","v":"rate only"}]
[]
[null,"Sub-Total",null,null,{"$f":"SUM(E473:E575)","v":0}]
[]
[null,"NO.4 : MASONRY"]
[]
[null,"PREAMBLES"]
[]
[null,"The Tenderer is referred to the relevant clauses in the latest edition of the Model Preambles for Trades and to the Supplementary Preambles"]
[]
[null,"SUPPLEMENTARY PREAMBLES"]
[]
[null,"Descriptions:"]
[]
[null,"Wh sizes in descriptions are given in brick units, \"one brick\" shall be the length and \"half brick\" the width of a brick."]
[]
[null,"Samples of all masonry building units, except those for walls described as \"load bearing\", shall consist of a minimum of 6 units. Samples of building units to be used in walls described as \"load bearing\" shall consist of 30 units from every 30 000 units delivd to site."]
[]
[null,"Descriptions of brickwork shall be deemed to include for steel reinforcing fabric as specified every fourth course in superstructure and every course in foundations.  Additional reinforcement in lintels, etc are measured separately."]
[]
[null,"Bricks shall be ordd timeously to obtain uniformity in size and colour."]
[]
[null,"Descriptions of recessed pointing to fair face brickwork and face brickwork shall be deemed to include square recessed, hollow recessed, weathd pointing, etc."]
[]
[null,"Rates for brickwork, faced brickwork, etc shall include for all required samples."]
[]
[null,"Walls in two skins described as 'bagged and sealed' shall be deemed to include having the outer face of the inner skin bagged with 1:6 cement and sand mixture and sealed with two coats 'Brixeal' bitumen emulsion waterproofing coating"]
[]
[null,"Tests:"]
[]
[null,"The contractor must provide all test results to the Eskom Service Manager/ Supervisor for approval."]
[]
[null,"Sizes in descriptions:"]
[]
[null,"Wh sizes in descriptions are given in brick units, 'one brick' shall represent the length and 'half brick' the width of a brick."]
[]
[null,"Hollow walls etc:"]
[]
[null,"Descriptions of hollow walls shall be deemed to include leaving every fifth perpend of the bottom course of the external skin open as a weep hole."]
[]
[null,"Bagged and sealed walls:"]
[]
[null,"Walls in two skins described as 'bagged and sealed' shall be deemed to include having the outer face of the inner skin bagged with 1:6 cement and sand mixture and sealed with three coats 'Brixeal' bitumen emulsion waterproofing coating."]
[]
[null,"Wall ties in hollow walls:"]
[]
[null,"Wall ties shall be polypropylene 'Permaties' complying with BS 76377.  Ties for hollow walls shall be of sufficient length to allow not less than 75mm of each end to be built into the brickwork.  Ties are to be spaced at intervals of not more than 1m in the horizontal direction and no more than 400mm staggd in the vertical direction except at openings, vertical joints or ends of walls wh they are to be placed vertically above each other."]
[]
[null,"Face Bricks:"]
[]
[null,"Bricks shall be ordd timeously to obtain uniformity in size and colour, no delay claims will be entertained for late delivery of face bricks."]
[]
[null,"Pointing:"]
[]
[null,"Descriptions of \"recessed\" pointing to face brickwork shall be deemed to include polished, square recessed, weathd pointing, etc."]
[]
[null,"Samples:"]
[]
[null,"Samples of all masonry building units, except those for walls described as 'load bearing', shall consist of a minimum of 6 units.  Samples of building units to be used in walls described as 'load bearing' shall consist of 30 units from every 30 000 units delivd to site"]
[]
[null,"Mock-up:"]
[]
[null,"The contractor must allow in his pricing for a mock-up of a 4m2 panel of face brick work for the approval of the Eskom Service Manager/ Supervisor. The mock-up is to remain for the duration of the project."]
[]
[null,"Selection of face bricks:"]
[]
[null,"The contractor must allow for in his pricing to select the face bricks so that th is no colour variance in the works."]
[]
[null,"General:"]
[]
[null,"The contractor must allow for in his pricing to thoroughly clean all brickwork with approved detergent and Jet sprayed on completion of the works."]
[]
[null,"Fibre-cement cills:"]
[null,"Before setting cills in mortar, contractor to ensure the metal lugs are firmly attached to the sill. Cills are to be soaked in water prior to bedding. Wh only a thin mortar bed is possible and the lug cannot be fully embedded, pockets in the masonry must be provided to ensure adequate fixing. Wh cills are plastd into reveals, sill ends should be separated be means of a thin joint or plastic sheeting."]
[]
[]
[null,"BRICKWORK"]
[]
[null,"BRICKWORK IN FOUNDATIONS "]
[]
[null,"Load bearing brickwork of NFX bricks (14 MPa nominal compressive strength) in Class I mortar, including brick re inforcement and hoop iron"]
[]
["B4.1","Half brick walls incluidng brickforce","m²",0,null,{"$f":"+IF($D657=\"\",\"\",IF($D657=0,\"rate only\",$D657*(E657)))","v":"rate only"}]
[]
["B4.2","One brick walls incluidng brickforce","m²",0,null,{"$f":"+IF($D659=\"\",\"\",IF($D659=0,\"rate only\",$D659*(E659)))","v":"rate only"}]
[]
["B4.3","280mm Cavity walls including wire ties, brickforce and filling cavity of hollow wall with 20MPa/19mm stone unreinforced concrete (e/m) as the work proceeds.","m²",0,null,{"$f":"+IF($D661=\"\",\"\",IF($D661=0,\"rate only\",$D661*(E661)))","v":"rate only"}]
[]
[null,"BRICKWORK IN SUPERSTRUCTURE "]
[]
[null,"Brickwork of NFP bricks (14 MPa nominal compressive strength) in Class II mortar, including re inforcement: and hoop iron"]
[]
["B4.4","Half brick walls incluidng brickforce","m²",0,null,{"$f":"+IF($D667=\"\",\"\",IF($D667=0,\"rate only\",$D667*(E667)))","v":"rate only"}]
[]
["B4.5","One brick walls incluidng brickforce","m²",0,null,{"$f":"+IF($D669=\"\",\"\",IF($D669=0,\"rate only\",$D669*(E669)))","v":"rate only"}]
[]
["B4.6","280mm Cavity walls including wire ties, brickforce and filling cavity of hollow wall with 20MPa/19mm stone unreinforced concrete (e/m) as the work proceeds.","m²",0,null,{"$f":"+IF($D671=\"\",\"\",IF($D671=0,\"rate only\",$D671*(E671)))","v":"rate only"}]
[]
[null,"Bagging of 1:3 cement and sand mixture :"]
[]
["B4.7","On brick surfaces.","m²",0,null,{"$f":"+IF($D675=\"\",\"\",IF($D675=0,\"rate only\",$D675*(E675)))","v":"rate only"}]
[]
[null,"Prestressed fabricated lintels"]
[]
["B4.8","110 x 75mm Lintels in lengths not exceeding 1.5m","No",0,null,{"$f":"+IF($D679=\"\",\"\",IF($D679=0,\"rate only\",$D679*(E679)))","v":"rate only"}]
[]
["B4.9","110 x 75mm Lintels in lengths not exceeding 3m","No",0,null,{"$f":"+IF($D681=\"\",\"\",IF($D681=0,\"rate only\",$D681*(E681)))","v":"rate only"}]
[]
["B4.10","110 x 75mm Lintels in lengths exceeding 3m and not exceeding 4.5m","No",0,null,{"$f":"+IF($D683=\"\",\"\",IF($D683=0,\"rate only\",$D683*(E683)))","v":"rate only"}]
[]
[]
[null,"MOVEMENT JOINTS"]
[]
[null,"Joint forming material in movement joints:"]
[]
["B4.11","12mm Bitumen impregnated fibre board built in vertically between brick skins.","m²",0,null,{"$f":"+IF($D690=\"\",\"\",IF($D690=0,\"rate only\",$D690*(E690)))","v":"rate only"}]
[]
["B4.12","10mm Bitumen impregnated softboard built in vertically between brick skins not exceeding 300mm wide","m",0,null,{"$f":"+IF($D692=\"\",\"\",IF($D692=0,\"rate only\",$D692*(E692)))","v":"rate only"}]
[]
[null,"Air bricks, etc:"]
[]
["B4.13","229 X 152mm Terracotta vermin proofed air bricks built into beamfilling at 500mm centres.","No",0,null,{"$f":"+IF($D696=\"\",\"\",IF($D696=0,\"rate only\",$D696*(E696)))","v":"rate only"}]
[]
[]
[null,"NUTEC-CEMENT/FIBRE-CEMENT WINDOW SILLS"]
[]
[null,"Everite Nutec' or other approved Natural grey window sills in single lengths not exceeding 3.6m, bedded in class I mortar including metal fixing lugs screwed to underside with self tapping screws:"]
[]
["B4.14","15 x 150mm Wide internal sills set flat and slightly projecting.","m",0,null,{"$f":"+IF($D703=\"\",\"\",IF($D703=0,\"rate only\",$D703*(E703)))","v":"rate only"}]
[]
[null,"Sub-Total",null,null,{"$f":"SUM(E580:E704)","v":0}]
[]
[null,"NO.5 : WATERPROOFING"]
[]
[null,"PREAMBLES"]
[]
[null,"The Tenderer is referred to the relevant clauses in the latest edition of the Model Preambles for Trades and to the Supplementary Preambles"]
[]
[null,"SUPPLEMENTARY PREAMBLES:"]
[]
[null,"Guarantee:"]
[]
[null,"The guarantee on the waterproofing must cover the waterproofing material plus removal and reinstatement of the ancillary work to the satisfaction of the Eskom  Southern Grid  Official."]
[]
[null,"Waterproofing to SANS 021:"]
[]
[null,"Waterproofing of roofs, retaining walls, etc shall be laid under a ten year written guarantee for site workmanship and watertightness. Waterproofing to roofs shall be laid to even falls to outlets etc with necessary ridges, hips and valleys.  Descriptions of sheet or membrane waterproofing shall be deemed to include additional labour to turn-ups, turn-downs and full bores. All waterproofing to be laid by an approved installation company."]
[]
[null,"General:"]
[]
[null,"All waterproofing work must be thoroughly inspected by the Eskom  (KZN) Official prior to it being covd up."]
[]
[]
[null,"DAMP-PROOFING OF WALLS ,FLOORS AND SLABS"]
[]
[null,"Gundle® or other approved 'Brikgrip® DPC 375' damp proof course to SABS mark 952- 1985 Type B:"]
[]
["B5.1","In walls.","m²",0,null,{"$f":"+IF($D732=\"\",\"\",IF($D732=0,\"rate only\",$D732*(E732)))","v":"rate only"}]
[]
[null,"Gundle® or other approved USB Green /Black' 250 µm membrane to SANS mark 952-1985 Type C laid  with minimum 150mm overlaps and sealed with 'Gunplas®' or other approved pressure sensitive tape:"]
[]
["B5.2","Under concrete surface beds, aprons etc","m²",0,null,{"$f":"+IF($D736=\"\",\"\",IF($D736=0,\"rate only\",$D736*(E736)))","v":"rate only"}]
[]
[null,"Derbigum LCEM 17' waterproofing with fibre mesh carrier or similar approved:"]
[]
["B5.3","various areas","m²",0,null,{"$f":"+IF($D740=\"\",\"\",IF($D740=0,\"rate only\",$D740*(E740)))","v":"rate only"}]
[]
[null,"Cemflex' Universal waterproofing and bonding agent with membrane waterproofing system by Sika or similar approved applied under a ten-year guarantee:"]
[]
["B5.4","various areas","m²",0,null,{"$f":"+IF($D744=\"\",\"\",IF($D744=0,\"rate only\",$D744*(E744)))","v":"rate only"}]
[]
[]
[null,"JOINT SEALANTS, ETC"]
[]
[null,"Approved joint sealants are: Sikaflex 35SL; Durakol 25; Prostruct 642 or 644. or similar approved."]
[]
[null,"Two-part grey Sikaflex polysulphide sealing compound including backing cord, bond breaker, Bitumen primer, etc:"]
[]
["B5.5","12 x 10mm In expansion joints between floors and walls including tearing off hinged edge of 'Jointex' preformed joint filler.","m",0,null,{"$f":"+IF($D753=\"\",\"\",IF($D753=0,\"rate only\",$D753*(E753)))","v":"rate only"}]
[]
["B5.6","6 x 20mm In saw cut joints.","m",0,null,{"$f":"+IF($D755=\"\",\"\",IF($D755=0,\"rate only\",$D755*(E755)))","v":"rate only"}]
[]
[null,"One layer 'Derbigum SP4' waterproofing membrane sealed by means of torchfusion or Coldbond 90 adhesive with 75mm side laps and 100mm end laps, laid under a ten year guarantee by approved specialist sub-contractor , to receive paint or other approved protection (Elsewhere measured):"]
[]
["B5.7","On flat / sloping roofs ","m²",0,null,{"$f":"+IF($D759=\"\",\"\",IF($D759=0,\"rate only\",$D759*(E759)))","v":"rate only"}]
[]
[null,"Sub-Total",null,null,{"$f":"SUM(E579:E759)","v":0}]
[]
[null,"NO.6 : ROOF COVERINGS"]
[]
[null,"PREAMBLES"]
[]
[null,"The Tenderer is referred to the relevant clauses in the latest edition of the Model Preambles for Trades and to the Supplementary Preambles"]
[]
[null,"SUPPLEMENTARY PREAMBLES"]
[]
[null,"General:"]
[]
[null,"Items, materials or methods to be used specified by trade names or catalogue numbers are only an indication of the quality required. Items, materials or methods of similar quality may be used with prior approval from the Eskom Service Manager/ Supervisorl."]
[]
[null,"The following roof sheeting systems are to be manufactured, supplied and installed in strict accordance with the Manufacturer's specifications."]
[]
[null,"Fixing of all roof sheeting is to be in accordance with the Manufacturer's approved Instruction Book."]
[]
[null,"The Manufacturer shall comply with ISO9002 Quality Management System."]
[]
[null,"All roof coverings are to be installed to comply with SANS code of practice 0237 as applicable."]
[]
[null,"All roof sheeting shall be laid under a five year guarantee for site workmanship and water tightness."]
[]
[]
[null,"ROOF TILES"]
[null,"420 x 332mm Double Roman M22 coated (terracotta colour) interlocking concrete roof tiles nailed with non-corrosive nails and/or fixed with suitable non- corrosive clips as required to and including 38 x 50 mm sawn softwood battens at 345mm centres over and including an underlay of 250 micron polyethylene sheeting in accordance with SANS 952 Type E fixed to rafters under battens with minimum laps of 150mm all in strict accordance with manufacturer's instructions:"]
[]
["B6.1","Roof covering with pitch exceeding 25 degrees, at 30 degrees","m²",0,null,{"$f":"+IF($D789=\"\",\"\",IF($D789=0,\"rate only\",$D789*(E789)))","v":"rate only"}]
[]
["B6.2","Ridges of tiles to match roofing tiles, bedded and pointed in 1:3 tinted cement mortar, including 300mm wide strip of 375 micron embossed damp-proof course in accordance with SANS 952 Type B underlay","m",0,null,{"$f":"+IF($D791=\"\",\"\",IF($D791=0,\"rate only\",$D791*(E791)))","v":"rate only"}]
[]
["B6.3","Hips of tiles to match roofing tiles, bedded and pointed in 1:3 tinted cement mortar, including 300mm wide strip of 375 micron embossed damp-proof course in accordance with SANS 952 Type B underlay and raking cutting to tiles on both sides","m",0,null,{"$f":"+IF($D793=\"\",\"\",IF($D793=0,\"rate only\",$D793*(E793)))","v":"rate only"}]
[]
["B6.4","Purpose made tile to end of ridge, bedded and pointed in 1:3 tinted cement mortar","No",0,null,{"$f":"+IF($D795=\"\",\"\",IF($D795=0,\"rate only\",$D795*(E795)))","v":"rate only"}]
[]
[]
[null,"RIBBED METAL SHEETING AND ACCESSORIES"]
[]
[null,"IBR  steel sheeting and accessories in \"Chromadeck\" or other approved \"Buffalo Brown\" standard colour finish fixed to 75x50x20x2.5mm thick lipped channel purlins and girts at approximately 1400mm and 1325mm centres in strict accordance to manufacturer's instructions:"]
[]
["B6.5","Roof covering with pitch not exceeding 25 degrees","m²",0,null,{"$f":"+IF($D802=\"\",\"\",IF($D802=0,\"rate only\",$D802*(E802)))","v":"rate only"}]
[]
["B6.6","Vertical side cladding","m²",0,null,{"$f":"+IF($D804=\"\",\"\",IF($D804=0,\"rate only\",$D804*(E804)))","v":"rate only"}]
[]
[]
[null,"ROOF INSULATION"]
[]
[null,"Super Sisalation or other approved Heavy Industrial Grade 420 - Double sided reflective foil laminate incorporating layers of Kraft paper and reinforcing scrim, laminated together with low density polyethylene (293gsm):"]
[]
["B6.7","Insulation laid taut over purlins at up to 1160mm centres and fixed concurrent with roof covering including galvanised straining wire or training tape.","m²",0,null,{"$f":"+IF($D811=\"\",\"\",IF($D811=0,\"rate only\",$D811*(E811)))","v":"rate only"}]
[]
[null,"\"Factorylite\" or other approved insulation laid between purlins."]
[]
["B6.8","100mm Thick Factorylite insulation laid but jointed between purlins under Sisalation foil laminate","m²",0,null,{"$f":"+IF($D815=\"\",\"\",IF($D815=0,\"rate only\",$D815*(E815)))","v":"rate only"}]
[]
[null,"\"Pink Aerolite\" flexible, non-combustible lightweight industrial fibreglass insulation material:"]
[]
["B6.9","50mm Thick insulation laid loose over ceilings with 50mm laps.","m²",0,null,{"$f":"+IF($D819=\"\",\"\",IF($D819=0,\"rate only\",$D819*(E819)))","v":"rate only"}]
[]
[null,"Sub-Total",null,null,{"$f":"SUM(E764:E819)","v":0}]
[]
[null,"NO.7 : CARPENTRY AND JOINERY"]
[]
[null,"PREAMBLES"]
[]
[null,"The Tenderer is referred to the relevant clauses in the latest edition of the Model Preambles for Trades and to the Supplementary Preambles"]
[]
[null,"SUPPLEMENTARY PREAMBLES"]
[]
[null,"Samples:"]
[]
[null,"The Tenderer is to allow in his tender to supply a sample of each type of door to the Eskom Service Manager/ Supervisor for approval."]
[]
[null,"Fixing"]
[]
[null,"Items described as \"nailed\" shall be deemed to be fixed with hardened steel nails or shot pins to brickwork or concrete"]
[]
[null,"Screws:"]
[]
[null,"Screws for fixing of wood shall be stainless steel except for screws to particle board which may be chipboard screws."]
[]
[null,"Timber:"]
[]
[null,"All Timber to be selected, prime free of knots and warps."]
[]
[]
[null,"ROOFS, ETC"]
[]
[null,"Sawn softwood"]
[]
["B7.1","38 x 114mm Wall plates","m",0,null,{"$f":"+IF($D852=\"\",\"\",IF($D852=0,\"rate only\",$D852*(E852)))","v":"rate only"}]
[]
["B7.2","76 x 114mm Wall plates bolted to brick wall.","m",0,null,{"$f":"+IF($D854=\"\",\"\",IF($D854=0,\"rate only\",$D854*(E854)))","v":"rate only"}]
[]
[null,"Sundries"]
[]
["B7.3","Two coats creosote on sawn timbers","m²",0,null,{"$f":"+IF($D858=\"\",\"\",IF($D858=0,\"rate only\",$D858*(E858)))","v":"rate only"}]
[]
[]
[null,"EAVES , VERGES , ETC"]
[]
[null,"\"SouthPro\" uPVC fascia and bargeboards in 6m lengths with uPVC connectors fixed to 38 x 38mm tilting batten and 38 x 38mm support battens between rafters twice screwed with 12 x 40mm countersunk brass screws capped with uPVC covers at maximum 800mm centres to support battens , with PVC H-profile fascia corner joiners at board ends:"]
[]
["B7.4","225 x 9mm Fascias and barge boards including uPVC connectors.","m",0,null,{"$f":"+IF($D865=\"\",\"\",IF($D865=0,\"rate only\",$D865*(E865)))","v":"rate only"}]
[]
[]
[null,"DOORS ETC ( Refer to Eskom specification )"]
[]
[null,"Hollow flush panel doors with sapele veneer suitable for painting on both sides and including hardwood edge strips all round hung to timber frames."]
[]
["B7.5","40 x 813 x 2032mm Door. ","No.",0,null,{"$f":"+IF($D872=\"\",\"\",IF($D872=0,\"rate only\",$D872*(E872)))","v":"rate only"}]
[]
["B7.6","40 x 1612 x 2032mm Door.","No.",0,null,{"$f":"+IF($D874=\"\",\"\",IF($D874=0,\"rate only\",$D874*(E874)))","v":"rate only"}]
[]
[null,"Semi-solid flush panel doors with sapele veneer suitable for painting on both sides and including hardwood edge strips all round hung to timber frames."]
[]
["B7.7","40 x 813 x 2032mm Door.","No.",0,null,{"$f":"+IF($D878=\"\",\"\",IF($D878=0,\"rate only\",$D878*(E878)))","v":"rate only"}]
[]
["B7.8","40 x 1612 x 2032mm Door.","No.",0,null,{"$f":"+IF($D880=\"\",\"\",IF($D880=0,\"rate only\",$D880*(E880)))","v":"rate only"}]
[]
[null,"Meranti stable doors "]
[]
["B7.9","40 x 813 x 2032mm Door.","No.",0,null,{"$f":"+IF($D884=\"\",\"\",IF($D884=0,\"rate only\",$D884*(E884)))","v":"rate only"}]
[]
["B7.10","40 x 813 x 2032mm Stable door","No.",0,null,{"$f":"+IF($D886=\"\",\"\",IF($D886=0,\"rate only\",$D886*(E886)))","v":"rate only"}]
[]
["B7.11","40 x 1612 x 2032mm Door.","No.",0,null,{"$f":"+IF($D888=\"\",\"\",IF($D888=0,\"rate only\",$D888*(E888)))","v":"rate only"}]
[]
[null,"Extra Over Doors"]
[]
["B7.12","250 x 250mm Viewing panel in cut opening in flush panel door, framed around in a double sided stainless steel frame and glazed with and including 6.38mm clear laminated safety glass.","No.",0,null,{"$f":"+IF($D892=\"\",\"\",IF($D892=0,\"rate only\",$D892*(E892)))","v":"rate only"}]
[]
[]
[null,"FIRE DOORS AND FRAMES"]
[]
[null,"Bitcon Industries fire doors and frames:"]
[]
[null,"Door frame hinges, handles, locks, etc to be specified by manufacturer and fire doors all to Eskom  (KZN) Official's approval."]
[]
["B7.13","Class 'B' fire door 813 x 2032mm high with approved steel cladding to both sides, including pressed steel frame for one brick wall and preparing frame for door closer and 8066 emergency exit fire bolt.","No.",0,null,{"$f":"+IF($D901=\"\",\"\",IF($D901=0,\"rate only\",$D901*(E901)))","v":"rate only"}]
[]
["B7.14","Manufacturer specified electronically controlled door, class 'B' fire double door 1740 x 2032mm high with approved marionette finish to both sides, including pressed steel frame for one brick wall and preparing frame for door closer and lock.","No.",0,null,{"$f":"+IF($D903=\"\",\"\",IF($D903=0,\"rate only\",$D903*(E903)))","v":"rate only"}]
[]
[]
[null,"SKIRTINGS, ETC"]
[]
[null,"Wrought Meranti:"]
[]
["B7.15","19 x 76mm Skirting including 19mm quadrant bead planted on.","m",0,null,{"$f":"+IF($D910=\"\",\"\",IF($D910=0,\"rate only\",$D910*(E910)))","v":"rate only"}]
[]
[]
[null,"WINDOW SILLS"]
[]
[null,"Oak hardwood:"]
[]
["B7.16","150 x 45mm Sills to match existing.","m",0,null,{"$f":"+IF($D917=\"\",\"\",IF($D917=0,\"rate only\",$D917*(E917)))","v":"rate only"}]
[]
[]
[null,"KITCHEN CUPBOARDS AND WORKTOPS, COUNTERS, BENCHES, SHELVES ETC"]
[]
[null,"Shop Drawings- Purpose Made Fittings:"]
[]
[null,"The Tenderer is advised that all fittings are purpose made and as such the Tenderer must provide shop drawings to the Eskom Service Manager/ Supervisor for approval."]
[]
[null,"Sizes:"]
[]
[null,"All Dimensions to be checked on site & discrepancies reported to the architect in writing for written decision prior to commencement of the fabrication of joinery fittings."]
[]
[null,"Tops of fittings and shelves to be fabricated in max. lengths, neatly fitted & joined on site. Joints shall be located at positions indicated on the drawings, wh these positions are not specified , then joints shall be located centrally over brackets or vertical divisions."]
[]
[null,"General:"]
[]
[null,"The various components of fittings shall be properly framed, housed, glued, pinned, blocked and screwed together. Screws shall be countersunk & pelleted if on hardwood surfaces. No fixings shall be visible on melamine, formica, timber vened hardwood surface. Wh sides are visible to be biscuited and clamped."]
[]
[null,"Standard:"]
[]
[null,"All work to comply with 'SABS' specifications, wh no SABS specifications exist 'BS' specifications shall apply. Wh specifications refer to diffnt grades, degrees of accuracy, specifications or quality, those shall apply."]
[]
[null,"General:"]
[]
[null,"1.All joinery junctions are to be secretly fixed.    2.No exposed screws, plugs or fillers will be accepted.    3.All colours and finishes are to be confirmed by the architect.    4.Shopfitters to provide samples of all materials for architects approval prior to manufacture.    5.Deviations to these joinery drawings are to be approved  by the architect prior to the preparation of the shop drawings.    6.Shopfitter to check all dimensions on site prior to the preparation of the shop drawings.    7.Only waterproof PG Bison V313 board is to be used for all counter tops.    8.All internal and concealed finishes to be white unless otherwise specified.    9.Locksets for cupboards and drawers wh required to be allowed for by the shop fitter. Shop fitter to have sample lockset approved by the Eskom  Service Manager/ Supervisor prior to ordering and fitting.    10.All dimensions are to be determined on site before fabrication.    11.All laminated wood to be manufactured in accordance with SANS 1460."]
[]
[null,"Balancing backs:"]
[]
[null,"All Formica or other vened boards to have balancing veneers bonded to reverse face of the board."]
[]
[null,"Sub-Total",null,null,{"$f":"SUM(E824:E947)","v":0}]
[]
[null,"NO.8 : CEILINGS, PARTITIONS AND ACCESS FLOORING"]
[]
[null,"PREAMBLES"]
[]
[null,"The Tenderer is referred to the relevant clauses in the latest edition of the Model Preambles for Trades and to the Supplementary Preambles"]
[]
[null,"SUPPLEMENTARY PREAMBLES"]
[]
[null,"Descriptions:"]
[]
[null,"Items described as nailed shall be deemed to be fixed with hardened steel nails or pins or shot pinned to brickwork or concrete."]
[]
[null,"Items described as plugged shall be deemed to include screwing to fibre, plastic or metal plugs at not exceeding 600mm centres, and wh described as bolted the bolts have been given."]
[]
[]
[null,"CEILINGS, ETC"]
[]
[null,"NAILED UP CEILINGS"]
[]
[null,"9.4mm \"Gyproc RhinoCeil Value\" gypsum flush plastd ceiling with square edged Rhinoboard fixed print side up with 32mm galvanised clout or semi-clout nails at 150mm centres to 38 x 50mm ( with 50mm dimension vertical ) SA Pine brandering at 300mm centres in one direction. All joints to be covd with Rhinotape fixed over joints (double over butt joints) and then plastd with 3mm to 6mm thick Rhinolite gypsum  skim plaster, all fixed to trusses at centres exceeding 1000mm, not exceeding 1200mm in accordance with the manufacturer's recommendation."]
[]
["B8.1","Extra over ceiling  for 650 x 650mm trap door of 38 x 50mm wrought softwood  rebated  framing  with  one 38 x 50mm sawn softwood cross brander covd with ceiling board and fitted flush in opening.","No",0,null,{"$f":"+IF($D971=\"\",\"\",IF($D971=0,\"rate only\",$D971*(E971)))","v":"rate only"}]
[]
[null,"9,5mm 'Rhinoboard' gypsum plastd ceiling fixed print side up with 32mm galvanized clout nails at 150mm centres with 48mm wide strips of 'Fibatape' fixed over joints and the whole finished with minimum 3mm and maximum 6mm thick coat of 'Rhinolite' or 'Cretestone' gypsum skim plaster trowelled to a smooth polished surface, all in strict accordance with the manufacturer's instructions:"]
[]
["B8.2","Ceilings including 38 x 50mm sawn softwood brandering at maximum 600mm centres with cross brandering at joints, ends of sheets and at light fittings, etc.","m²",0,null,{"$f":"+IF($D975=\"\",\"\",IF($D975=0,\"rate only\",$D975*(E975)))","v":"rate only"}]
[]
["B8.3","Extra over ceiling for 600 x 600mm trap door of 70 x 44mm wrought softwood rebated framing with one 38 x 50mm sawn softwood cross brander covd with ceiling board, skim plastd and fitted flush in opening.","No.",0,null,{"$f":"+IF($D977=\"\",\"\",IF($D977=0,\"rate only\",$D977*(E977)))","v":"rate only"}]
[]
[null,"6mm 'Everite Nutec' plain boards with galvanised steel or white PVC H-profile jointing strips over joints:"]
[]
["B8.4","Ceilings including 38 x 50mm sawn softwood brandering at 600mm centres with cross brandering at joints, ends of sheets and at light fittings, etc.","m²",0,null,{"$f":"+IF($D981=\"\",\"\",IF($D981=0,\"rate only\",$D981*(E981)))","v":"rate only"}]
[]
[]
[null,"SCREW UP CEILINGS"]
[]
[null,"6,4mm 'Rhinoboard' square edged gypsum plasterboard screwed to 'Donn T37K' galvanised steel capped tee flush plastd ceiling suspension system with drywall screws spaced at 250mm centres, including galvanised 1200mm centres and cross tees at 300mm centres, all suspended with galvanised ?[ 19mm straps / 20 x 20mm angles ] at not exceeding 1200mm centres, with 48mm wide strips of 'Fibatape' fixed over joints and the whole finished with minimum 3mm and maximum 6mm thick coat of 'Rhinolite or 'Cretestone' gypsum skim plaster trowelled to smooth polished surface in strict accordance with the manufacturer's instructions:"]
[]
["B8.5","Ceilings suspended not exceeding 1m below horizontal steel trusses","m²",0,null,{"$f":"+IF($D988=\"\",\"\",IF($D988=0,\"rate only\",$D988*(E988)))","v":"rate only"}]
[]
[]
[null,"SUSPENDED CEILINGS"]
[]
[null,"Masonite Armstrong' square/revealed edged edge 'Dune Supreme' ceiling tiles size 1200 x 600mm, in colour Global White, laid in 'Masonite Armstrong' 1 hour fire rated, stitched 'Trulock 24' exposed grid system with 24mm wide T-section flanges including galvanised main tees, cross tees, hold-down clips, wedges, reinforcement splines, etc., all suspended with galvanised hangers strictly in accordance with the manufacturer's instructions and SABISA's guidelines:"]
[]
["B8.6","Ceilings suspended not exceeding 1m below timber purlins at 1200mm centres with trusses at 1200mm centres.","m²",0,null,{"$f":"+IF($D995=\"\",\"\",IF($D995=0,\"rate only\",$D995*(E995)))","v":"rate only"}]
[]
["B8.7","Ceilings suspended not exceeding 1m below concrete slab.","m²",0,null,{"$f":"+IF($D997=\"\",\"\",IF($D997=0,\"rate only\",$D997*(E997)))","v":"rate only"}]
[]
[null,"\"Owacoustic RH 90\" pre-painted Constellation mineral fibre ceiling tiles size 600 x 600 x 15mm with revealed edges on 25mm 'Gridlock' pre-painted 38mm exposed galvanised steel tee suspension system  to suit including all necessary hangers, sub-grid, fixings, etc:"]
[]
["B8.8","Ceilings suspended not exceeding 1m below concrete soffits.","m²",0,null,{"$f":"+IF($D1001=\"\",\"\",IF($D1001=0,\"rate only\",$D1001*(E1001)))","v":"rate only"}]
[]
[]
[null,"CORNICE"]
[]
[null,"Lafarge Gypsum Gaudi Nu-cornice polystyrene cornice. overall size 55 x 55mm high, fixed to wall and ceiling using an approved water-based adhesive and appropriate nail fixing wh necessary, filling all fixing holes with an approved acrylic sealant, all in accordance with the manufacturers recommendations."]
[]
["B8.9","20 x 20mm pre-painted shadowline cornices for suspended ceilings.","m",0,null,{"$f":"+IF($D1008=\"\",\"\",IF($D1008=0,\"rate only\",$D1008*(E1008)))","v":"rate only"}]
[]
[null,"QBPB RhinoArt' Moulded Gypsum Adhesive Cornices:"]
[]
["B8.10","75mm Coved cornice.","m",0,null,{"$f":"+IF($D1012=\"\",\"\",IF($D1012=0,\"rate only\",$D1012*(E1012)))","v":"rate only"}]
[]
[null,"Nu-cornice' Fibre Cement Cornices:"]
[]
["B8.11","75mm Coved cornice fixed with adhesive","m",0,null,{"$f":"+IF($D1016=\"\",\"\",IF($D1016=0,\"rate only\",$D1016*(E1016)))","v":"rate only"}]
[]
[null,"Masonite Armstrong':"]
[]
["B8.12","Shadowline perimeter trim to suspended ceiling, plugged to brickwork.","m",0,null,{"$f":"+IF($D1020=\"\",\"\",IF($D1020=0,\"rate only\",$D1020*(E1020)))","v":"rate only"}]
[]
["B8.13","Sigma Cel-05 recessed transition angle cornice against skimmed ceiling.","m",0,null,{"$f":"+IF($D1022=\"\",\"\",IF($D1022=0,\"rate only\",$D1022*(E1022)))","v":"rate only"}]
[]
[]
[null,"INSULATION"]
[]
[null,"Isotherm' or other approved flexible, non- combustible lightweight industrial fibreglass insulation material."]
[]
["B8.14","100mm Thick thermal insulation (density 10kg/m) laid over ceiling brandering closely fitted between rafters.","m²",0,null,{"$f":"+IF($D1029=\"\",\"\",IF($D1029=0,\"rate only\",$D1029*(E1029)))","v":"rate only"}]
[]
[]
[null,"PARTITIONING, ETC"]
[]
[null,"Rhino GypRoc Drywall Classic GW-ST partitioning with cavity bat to give 48dB sound rating "]
[]
["B8.15","Erect drywall partition not exceeding 3m high ","m²",0,null,{"$f":"+IF($D1036=\"\",\"\",IF($D1036=0,\"rate only\",$D1036*(E1036)))","v":"rate only"}]
[]
["B8.16","Close up door openning with drywall partition not exceeding 2.5m","m²",0,null,{"$f":"+IF($D1038=\"\",\"\",IF($D1038=0,\"rate only\",$D1038*(E1038)))","v":"rate only"}]
[]
[null,"Sub-Total ",null,null,{"$f":"SUM(E950:E1039)","v":0}]
[]
[null,"NO.9 : FLOOR COVERINGS"]
[]
[null,"PREAMBLES:"]
[]
[null,"The Tenderer is referred to the relevant clauses in the latest edition of the Model Preambles for Trades and to the Supplementary Preambles"]
[]
[null,"SUPPLEMENTARY PREAMBLES"]
[]
[null,"Floor and Wall Coverings:"]
[]
[null,"All floor coverings and wall linings are to be installed strictly in accordance with the manufacturer's detailed instructions by an approved installation company."]
[]
[null,"Samples:"]
[]
[null,"The Tenderer must allow in his prices to provide a 10m2 sample panel to the EskomService Manager/ Supervisor approval for all diffnt finishes. The sample is to remain until the end of the contract."]
[]
[]
[null,"TUFTED CARPET SHEETING AND TILES"]
[]
[null,"\"Nexus Berber Point 920\" or colour to match  Bitumen backed carpet tiles (colour: Boron) including adhesive and preparation of screeded surfaces"]
[]
["B9.1","On floors, stairs, ramps,landings etc","m²",0,null,{"$f":"+IF($D1063=\"\",\"\",IF($D1063=0,\"rate only\",$D1063*(E1063)))","v":"rate only"}]
[]
[null,"Sub-Total",null,null,{"$f":"SUM(E1046:E1063)","v":0}]
[]
[null,"NO.10 : IRONMONGERY"]
[]
[null,"PREAMBLES"]
[]
[null,"The Tenderer is referred to the relevant clauses in the latest edition of the Model Preambles for Trades and to the Supplementary Preambles"]
[]
[null,"SUPPLEMENTARY PREAMBLES:"]
[]
[null,"The Tenderer is referred to the separate document C2.1 Supplementary Preambles which shall be read in conjunction with and shall apply to all items in these Bills of Quantities."]
[null,"Items, materials or methods to be used specified by trade names or catalogue numbers are only an indication of the quality required. Items, materials or methods of similar quality may be used with prior approval from the Eskom Service Manager/ Supervisor."]
[]
[null,"Fixing of ironmongery:"]
[]
[null,"Screws, bolts, etc for fixing of ironmongery shall be of matching metal and finish, except for aluminium ironmongery or ironmongery fixed to aluminium in which cases stainless steel screws must be used."]
[]
["B10.1","Union door lock 2 mortice","No",0,null,{"$f":"+IF($D1082=\"\",\"\",IF($D1082=0,\"rate only\",$D1082*(E1082)))","v":"rate only"}]
[]
["B10.2","Union door lock 3 mortice","No",0,null,{"$f":"+IF($D1084=\"\",\"\",IF($D1084=0,\"rate only\",$D1084*(E1084)))","v":"rate only"}]
[]
[null,"Sub-Total",null,null,{"$f":"SUM(E1071:E1085)","v":0}]
[]
[null,"NO 11 : VERTICAL BLINDS"]
[]
[null,"Aluvert/BlindQuip  or  other  equal  and  approved  vertical fabric  blinds  (colour  Denim Blue)  with  127mm  wide  non-fade fabric  vanes  with  light  fast  factor  of  6  -  7,  stable  in  all directions  to  eliminate  warp  and  twist,  set  up  and  fixed  in position  complete  with  track,  runners,  brackets,  end  caps, bottom weights, clutch and all controls, etc"]
[]
["B11.1","Vertical  fabric  blinds  to windows ( Refer to Eskom specifications )","m2",0,null,{"$f":"+IF($D1092=\"\",\"\",IF($D1092=0,\"rate only\",$D1092*(E1092)))","v":"rate only"}]
[]
[null,"Sub-Total",null,null,{"$f":"SUM(E1090:E1093)","v":0}]
[]
[null,"NO.12 : METALWORK"]
[]
[null,"PREAMBLES"]
[]
[null,"The Tenderer is referred to the relevant clauses in the latest edition of the Model Preambles for Trades and to the Supplementary Preambles"]
[]
[null,"SUPPLEMENTARY PREAMBLES:"]
[]
[null,"Shop Drawings:"]
[]
[null,"As a general rule all work related to this trade must have shop drawings prepared and approved by the Eskom Service Manager/ Supervisor prior to fabrication. Wh th is refnce to design and supply, it must be designed by a professionally registd engineer."]
[]
[null,"Descriptions"]
[]
[null,"Descriptions of bolts shall be deemed to include nuts and washers"]
[]
[null,"Descriptions of expansion anchors and bolts and chemical anchors and bolts shall be deemed to include nuts, washers and mortices in brickwork or concrete"]
[]
[null,"Metalwork described as \"holed for bolt(s)\" shall be deemed to exclude the bolts unless otherwise described."]
[]
[null,"Steelwork, wh galvanised, is to be hot dipped galvanised to ISO 1461-1999"]
[]
[null,"Contractor to supply product guarantee and slips to architect. All goods to comply with SANS."]
[]
[null,"Hot dipped galvanised and epoxy powder coated to approved colour by specialists mild steel gates."]
[]
[]
[null,"ALUMINIUM WINDOWS, DOORS, ETC."]
[]
[null,"The following Preambles shall apply to aluminium windows, doors, etc in all respects in so far as they are applicable."]
[]
[null,"Aluminium windows and doors shall be manufactured from extruded L28 aluminium members of 6063-T6, 6261-T6 or 6082-T6 alloy and temper.  All corners are to be mechanically cleated."]
[null,"Windows, doors, etc shall be of an approved standard system, manufactured by an approved firm experienced in this type of work and registd with the Association of Architectural Aluminium Manufacturers of South Africa (AAAMSA), and shall meet with or exceed the minimum recommended performance requirements as set out by the AAAMSA in the latest edition of the Selection Guide. Doors shall comply with the AAAMSA PTHA1 performance standard."]
[]
[null,"The fittings for all opening sashes shall be substantial and, unless otherwise described, shall be of high quality aluminium alloy finished to match the windows, doors, etc on which they occur. Samples of all fittings shall be supplied to the Eskom Service Manager/ Supervisor for approval."]
[]
[null,"An (AAAMSA) performance certificate from the manufacturer of the windows and doors shall be provided prior to commencement of any work on site."]
[]
[null,"Top hung opening sashes shall be hung on two concealed heavy duty FS12-1543 grade 304 stainless steel friction stays and fitted with epoxy powder coated window fasteners."]
[]
[null,"All opening sashes are to be fitted with approved woodpile weatherseals."]
[]
[null,"Glazing beads:"]
[]
[null,"Who so described, openings and sashes of windows and doors shall be fitted with approved clip on aluminium glazing beads sufficient in size and profile to suit the method of glazing employed, finished to match the windows, doors, etc and neatly mitred.  Screws wh necessary shall be of aluminium or 300 Series stainless steel and have pan or raised heads finished to match the beads."]
[]
[null,"Finishes:"]
[]
[null,"Windows, doors, etc., described as natural 'anodised' shall be treated with Grade 25 coating thickness."]
[]
[null,"The contractor shall provide a certificate of conformance with these standards."]
[]
[null,"Glazing:"]
[]
[null,"Glazing is to be carried out in strict accordance with the SANS 0137/2000 code of Practice: \"The Installation of Glazing in Buildings\" and wh required, safety glazing materials must conform to SANS 1263."]
[]
[null,"The contractor shall provide a certificate of conformance with these standards."]
[]
[null,"Laminated safety glazing shall be warranted, by the manufacturer, against delamination and colour degradation for not less than 5 years."]
[]
[null,"The contractor shall provide a certificate to this effect."]
[]
[null,"Gasket seals for glazing are to be approved Santoprene seals as recommended by the manufacturer and to suit the glazing thickness."]
[]
[null,"General:"]
[]
[null,"Aluminium windows, doors, etc shall include glass as described, fixing in position, sealing around edges externally and internally with approved silicone sealant and protection against damage, deterioration or discolouration by taping the whole door/ window with removable PVC tape or covering with temporary casings and removing same on completion. The protection is to be removed only when authorised by the Eskom Service Manager/ Supervisor."]
[]
[null,"Rivets:"]
[]
[null,"All rivets to be stainless steel."]
[]
[]
[null,"SUNDRY STEELWORK "]
[]
[null,"BURGLAR BARS AND SECURITY GATES"]
[]
["B12.1","Supply and install burglar bars - 12mm bars with flat bars all around","m²",0,null,{"$f":"+IF($D1173=\"\",\"\",IF($D1173=0,\"rate only\",$D1173*(E1173)))","v":"rate only"}]
[null,"hot dipped galvanised"]
[]
["B12.2","Supply and insatll security gate  - 12mm bars with tubing and double lock ","m²",0,null,{"$f":"+IF($D1176=\"\",\"\",IF($D1176=0,\"rate only\",$D1176*(E1176)))","v":"rate only"}]
[null,"hot dipped galvanised"]
[]
["B12.3","Supply and install trelli door gate or equavilent  ( bronze or white )","m²",0,null,{"$f":"+IF($D1179=\"\",\"\",IF($D1179=0,\"rate only\",$D1179*(E1179)))","v":"rate only"}]
[]
[null,"Sub-Total",null,null,{"$f":"SUM(E1144:E1179)","v":0}]
[]
[null,"NO.13 : PLASTERING"]
[]
[null,"The Tenderer is referred to the relevant clauses in the latest edition of the Model Preambles for Trades and to the Supplementary Preambles"]
[]
[]
[null,"TESTING"]
[]
["B13.1","Carry out impact tests to establish the soundness of all screeded substrates","No",0,null,{"$f":"+IF($D1190=\"\",\"\",IF($D1190=0,\"rate only\",$D1190*(E1190)))","v":"rate only"}]
[]
[]
[null,"SCREEDS"]
[]
[null,"Screeds on concrete:"]
[]
["B13.2","Allow for a trial mix for all screeded surfaces to be sent to an approved laboratory for testing and subject to the approval of the Eskom Service Manager/ Supervisor and Structural Engineer. Allow for a sample panel size 2m x 2m for each thickness and for approval prior to laying.","Item",0,null,{"$f":"+IF($D1197=\"\",\"\",IF($D1197=0,\"rate only\",$D1197*(E1197)))","v":"rate only"}]
[]
[null,"1:4  Cement plaster screeds wood floated on concrete:"]
[]
["B13.3","25mm Thick on floors and landings.","m²",0,null,{"$f":"+IF($D1201=\"\",\"\",IF($D1201=0,\"rate only\",$D1201*(E1201)))","v":"rate only"}]
[]
["B13.4","Average 35mm thick receded screed to falls.","m²",0,null,{"$f":"+IF($D1203=\"\",\"\",IF($D1203=0,\"rate only\",$D1203*(E1203)))","v":"rate only"}]
[]
[null,"Slush finish of 1:3 cement and sand mixture "]
[]
["B13.5","Brushed on concrete / masonary surfaces etc.","m²",0,null,{"$f":"+IF($D1207=\"\",\"\",IF($D1207=0,\"rate only\",$D1207*(E1207)))","v":"rate only"}]
[]
[]
[null,"INTERNAL PLASTER"]
[]
[null,"1:5 Cement plaster on masonary / concrete:"]
[]
[null,"Allow for a trial mix for all plastd surfaces to be sent to an approved laboratory for testing and subject to the approval of the Eskom Transmission Southern Grid Official and Structural Engineer. Allow for a sample panel size 2m x 2m for each thickness and for approval prior to laying."]
[]
["B13.6","On walls","m²",0,null,{"$f":"+IF($D1216=\"\",\"\",IF($D1216=0,\"rate only\",$D1216*(E1216)))","v":"rate only"}]
[]
["B13.7","On columns / beams ","m²",0,null,{"$f":"+IF($D1218=\"\",\"\",IF($D1218=0,\"rate only\",$D1218*(E1218)))","v":"rate only"}]
[]
["B13.8","On ceilings.","m²",0,null,{"$f":"+IF($D1220=\"\",\"\",IF($D1220=0,\"rate only\",$D1220*(E1220)))","v":"rate only"}]
[]
[]
[null,"EXTERNAL PLASTER"]
[]
[null,"Allow for a trial mix for all plastd surfaces to be sent to an approved laboratory for testing and subject to the approval of the Eskom Service Manager/ Supervisor and Structural Engineer. Allow for a sample panel size 2m x 2m for each thickness and for approval prior to laying."]
[]
[null,"1:4 Cement plaster on masonary/concrete:"]
[]
["B13.9","On columns / beams ","m²",0,null,{"$f":"+IF($D1229=\"\",\"\",IF($D1229=0,\"rate only\",$D1229*(E1229)))","v":"rate only"}]
[]
["B13.10","On walls","m²",0,null,{"$f":"+IF($D1231=\"\",\"\",IF($D1231=0,\"rate only\",$D1231*(E1231)))","v":"rate only"}]
[]
["B13.11","On ceilings.","m²",0,null,{"$f":"+IF($D1233=\"\",\"\",IF($D1233=0,\"rate only\",$D1233*(E1233)))","v":"rate only"}]
[]
[null,"Sub-Total",null,null,{"$f":"SUM(E1184:E1233)","v":0}]
[]
[null,"NO.14 : TILING"]
[]
[null,"PREAMBLES"]
[]
[null,"The Tenderer is referred to the relevant clauses in the latest edition of the Model Preambles for Trades and to the Supplementary Preambles"]
[]
[null,"SUPPLEMENTARY PREAMBLES"]
[]
[null,"Descriptions"]
[]
[null,"Tiles should comply with the minimum requirements of SANS 1449."]
[]
[null,"Wall tiling to comply with Part 7.2 of SANS 0107:1996."]
[]
[null,"Finished wall tile surfaces to comply with Part 7.2.6.1. of SANS 0107:1996."]
[]
[null,"Protection cleaning and maintenance of wall tiles to comply with part 9 of SANS 0107:1996."]
[]
[null,"Tiling rates to include appropriate plastic edge trims whver required, to all external corners, jambs, sills, etc."]
[]
[]
[null,"CERAMIC WALL TILING"]
[]
[null,"Johnson Optima (OT4)' 200 x 250mm Gloss White glazed ceramic tiles fixed with Csit Tylon CM 11 cement based adhesive to wood floated plastd walls and flush pointed with Csit Tylon CE 33 grout.:"]
[]
["B14.1","On walls.","m²",0,null,{"$f":"+IF($D1262=\"\",\"\",IF($D1262=0,\"rate only\",$D1262*(E1262)))","v":"rate only"}]
[]
[null,"Johnson Optima (OT4)' 200 x 250mm Gloss White glazed ceramic tiles fixed with Csit Tylon CM 11 cement based adhesive to wood floated plastd wall partitions and flush pointed with Csit Tylon CE 33 grout.:"]
[]
["B14.2","On narrow widths top of half brick wall.","m",0,null,{"$f":"+IF($D1266=\"\",\"\",IF($D1266=0,\"rate only\",$D1266*(E1266)))","v":"rate only"}]
[]
[]
[null,"CERAMIC FLOOR TILING"]
[]
[null,"500 x 500mm 'Johnson Agulhas Stone AG706', PEI4 rating glazed ceramic tiles fixed with Csit Tylon CM 11 cement based adhesive to wood floated screeded floors and flush pointed with Csit Tylon CE 33 grout. (Pricing shall include plastic edging and corner trims).:"]
[]
["B14.3","On floors and landings","m²",0,null,{"$f":"+IF($D1273=\"\",\"\",IF($D1273=0,\"rate only\",$D1273*(E1273)))","v":"rate only"}]
[]
["B14.4","110mm High cut tile skirting with aluminium edge trim on top.","m",0,null,{"$f":"+IF($D1275=\"\",\"\",IF($D1275=0,\"rate only\",$D1275*(E1275)))","v":"rate only"}]
[]
["B14.5","110mm High circular cut tile skirting with aluminium edge trim on top.","m",0,null,{"$f":"+IF($D1277=\"\",\"\",IF($D1277=0,\"rate only\",$D1277*(E1277)))","v":"rate only"}]
[]
[]
[null,"MOSAIC FLOOR TILING"]
[]
[null,"25 x 25mm 'Tile Africa' 271 Matt charcoal grey, mosaic tiles fixed with 'Tal' or equally approved anti-bacterial and anti-fungal mosaic waterproof tile adhesive and tile grout:"]
[]
["B14.6","On shower floors to falls and outlet.","m²",0,null,{"$f":"+IF($D1284=\"\",\"\",IF($D1284=0,\"rate only\",$D1284*(E1284)))","v":"rate only"}]
[]
[]
[null,"SLATE AND SANDSTONE FLOOR TILING"]
[]
[null,"500 x 500mm African Blue Natural Slate Tiles to exterior  wood floated concrete or screed. Allow all new concrete work and screeds to cure for at least 28 days before proceeding. All new concrete work and screeds must have a moisture content of 5% or less before tiling can be commenced. When tiling directly onto concrete, ensure that the surfaces are clean and free of all traces of shutter release and curing agents, laitance and any other surface contaminants, preferably by scarifying or sandblasting. Any screeding must be firmly attached to the underlying concrete, must be integrally sound (no crumbling, cracking etc.) and must be of a quality and consistency suitable for tiling. All defective areas must be removed and the floor made good before proceeding. Apply Tal Gold Star 6 rapid setting adhesive using a notched Tal floor trowel. Grout with light grey Tal Stain free grout mixed 20kg with 6 litres of clean water:"]
[]
["B14.7","On floors in patterns.","m²",0,null,{"$f":"+IF($D1291=\"\",\"\",IF($D1291=0,\"rate only\",$D1291*(E1291)))","v":"rate only"}]
[]
[]
[null,"EDGE TRIMS"]
[]
[null,"M-Trim':"]
[]
["B14.8","AFE080' 15 Micron, bronze, anodised aluminium formable straight edge trim to threshold.","m",0,null,{"$f":"+IF($D1298=\"\",\"\",IF($D1298=0,\"rate only\",$D1298*(E1298)))","v":"rate only"}]
[]
["B14.9","ARE080' 15 Micron, matt silver, anodised aluminium formable straight edge trim to threshold.","m",0,null,{"$f":"+IF($D1300=\"\",\"\",IF($D1300=0,\"rate only\",$D1300*(E1300)))","v":"rate only"}]
[]
[null,"PVC round edge trim:"]
[]
["B14.10","PVC round edge white tile edge trim 9mm high to suit tiling 7 to 8mm thick, fixed with adhesive to external wall corners.","m",0,null,{"$f":"+IF($D1304=\"\",\"\",IF($D1304=0,\"rate only\",$D1304*(E1304)))","v":"rate only"}]
[]
[]
[null,"NOSINGS, JOINT COVERS, PROTECTORS, ETC."]
[]
[null,"Genesis' floor movement joints:"]
[]
["B14.11","Genesis 'Type MMA' aluminium urethane medium duty movement joint 10mm high with type 20 finish.","m",0,null,{"$f":"+IF($D1311=\"\",\"\",IF($D1311=0,\"rate only\",$D1311*(E1311)))","v":"rate only"}]
[]
[null,"Sub-Total",null,null,{"$f":"SUM(E1238:E1312)","v":0}]
[]
[null,"NO.15 : GLAZING"]
[]
[null,"PREAMBLES"]
[]
[null,"The Tenderer is referred to the relevant clauses in the latest edition of the Model Preambles for Trades and to the Supplementary Preambles"]
[]
[null,"SUPPLEMENTARY PREAMBLES"]
[]
[null,"Rate approvals:"]
[]
[null,"The tenderer is advised that any rate that is required for new work must include the following breakdown:"]
[]
[null,"Material, labour, plant, wastage, transport and profit."]
[]
[null,"Rate approvals must be authorised by the Eskom Transmission Official prior to work being carried out."]
[]
[null,"Overtime work and normal work:"]
[]
[null,"The tenderers are advised that the following works may be done during normal working hours as well as after normal working hours. Tenderers must make due allowance for these working hours in the pricing as no claims will be entertained in this regard."]
[]
[null,"GLAZING TO STEEL WITH PUTTY"]
[]
[null,"Descriptions:"]
[]
[null,"Glazing set in steel frames to comply with Part N of NBR by 'Smart Glass' or similar approved."]
[]
[null,"4mm clear float glass:"]
[]
["B15.1","Panes exceeding 0,1m² and not exceeding 0,5m²","m²",0,null,{"$f":"+IF($D1343=\"\",\"\",IF($D1343=0,\"rate only\",$D1343*(E1343)))","v":"rate only"}]
[]
[null,"4mm obscure glass:"]
[]
["B15.2","Panes exceeding 0,1 and not exceeding 0,5m²","m²",0,null,{"$f":"+IF($D1347=\"\",\"\",IF($D1347=0,\"rate only\",$D1347*(E1347)))","v":"rate only"}]
[]
[null,"6.38mm laminated safety glass with obscured surface, glazing:"]
[]
["B15.3","Panes exceeding 0,1 m² and not exceeding 0,5m².","m²",0,null,{"$f":"+IF($D1351=\"\",\"\",IF($D1351=0,\"rate only\",$D1351*(E1351)))","v":"rate only"}]
[]
["B15.4","Panes exceeding 0,5 m² and not exceeding 2m².","m²",0,null,{"$f":"+IF($D1353=\"\",\"\",IF($D1353=0,\"rate only\",$D1353*(E1353)))","v":"rate only"}]
[]
[null,"6.38 mm 'Smartglass Intruderprufe' NS clear laminated safety glazing:"]
[]
["B15.5","Panes exceeding 0,1 m² and not exceeding 0,5m².","m²",0,null,{"$f":"+IF($D1357=\"\",\"\",IF($D1357=0,\"rate only\",$D1357*(E1357)))","v":"rate only"}]
[]
["B15.6","Panes exceeding 0,5 m² and not exceeding 2m².","m²",0,null,{"$f":"+IF($D1359=\"\",\"\",IF($D1359=0,\"rate only\",$D1359*(E1359)))","v":"rate only"}]
[]
[null,"Extra over laminated safety glazing for sandblasting one side of glass pane to make obscure:"]
[]
["B15.7","Pane size 565mm x 865mm","No.",0,null,{"$f":"+IF($D1363=\"\",\"\",IF($D1363=0,\"rate only\",$D1363*(E1363)))","v":"rate only"}]
[]
["B15.8","Pane size 830mm x 2000mm","No.",0,null,{"$f":"+IF($D1365=\"\",\"\",IF($D1365=0,\"rate only\",$D1365*(E1365)))","v":"rate only"}]
[]
[null,"GLAZING TO CONCRETE WITH GLAZING SILICONE"]
[]
[null,"6.38mm clear laminated safety glazing:"]
[]
["B15.9","Panes exceeding 0,1m² and not exceeding 0,5m². ","m²",0,null,{"$f":"+IF($D1371=\"\",\"\",IF($D1371=0,\"rate only\",$D1371*(E1371)))","v":"rate only"}]
[]
[null,"GLAZING TO TIMBER WITH BEADS (BEADS ELSEWHERE)"]
[]
[null,"6,38mm Normal strength clear laminated safety glass and glazing set in timber frames with beads (elsewhere) to comply with Part N of NBR"]
[]
["B15.10","Panes exceeding 0,1 m² and not exceeding 0,5m².","m²",0,null,{"$f":"+IF($D1377=\"\",\"\",IF($D1377=0,\"rate only\",$D1377*(E1377)))","v":"rate only"}]
[]
["B15.11","Panes exceeding 0,5 m² and not exceeding 2m².","m²",0,null,{"$f":"+IF($D1379=\"\",\"\",IF($D1379=0,\"rate only\",$D1379*(E1379)))","v":"rate only"}]
[]
[null,"GLAZING TO ALUMINIUM WITH CLIP ON BEADS (BEADS ELSEWHERE)"]
[]
[null,"6,38mm Normal strength clear laminated safety glass"]
[]
["B15.12","Panes exceeding 0,5m2 and not exceeding 2m²","m²",0,null,{"$f":"+IF($D1385=\"\",\"\",IF($D1385=0,\"rate only\",$D1385*(E1385)))","v":"rate only"}]
[]
[null,"TOPS, SHELVES, DOORS, MIRRORS, ETC"]
[]
[null,"6mm Thick silvered float glass with polished edges fixed to wall surface with 4 chromium plated domed mirror screws:"]
[]
["B15.13","Mirror 400mm x 600mm high.","No.",0,null,{"$f":"+IF($D1391=\"\",\"\",IF($D1391=0,\"rate only\",$D1391*(E1391)))","v":"rate only"}]
[]
["B15.14","Mirror 500mm  x 700mm high.","No.",0,null,{"$f":"+IF($D1393=\"\",\"\",IF($D1393=0,\"rate only\",$D1393*(E1393)))","v":"rate only"}]
[]
[null,"Sub-Total",null,null,{"$f":"SUM(E1317:E1394)","v":0}]
[]
[null,"NO.16 : PAINTWORK"]
[]
[null,"PREAMBLES"]
[]
[null,"The Tenderer is referred to the relevant clauses in the latest edition of the Model Preambles for Trades and to the Supplementary Preambles"]
[]
[null,"SUPPLEMENTARY PREAMBLES:"]
[]
[null,"Manufacturer's Details:"]
[]
[null,"The following paints are to be manufactured/supplied by PLASCON PAINTS (PTY) LTD and applied in strict accordance with the manufacturer/supplier's specification."]
[]
[null,"Supplementary Preambles:"]
[]
[null,"All work to be executed in strict accordance with the specifications of Plascon Paints (Pty) Ltd. The coating systems are as per Plascon's 'List of Decorative Paint Products' unless otherwise specified. Full specifications are available on request from Sophie Fourie Tel. (011) 301-4600 or from the various branch offices as listed above."]
[]
[null,"Primers and first coats may be thinned in accordance with the paint specifications of Plascon Paints (Pty) Ltd to aid the absorption of the paint."]
[]
[null,"All surfaces must be sound, clean and have a moisture content of less than 8% for walls generally and 3% for slabs/screeds etc."]
[]
[null,"Wh surfaces of plaster etc are sandy / friable, the first coat must be replaced with 'Plascon Merit' plaster primer thinned 10% with turpentine."]
[]
[null,"Paint Colours:"]
[]
[null,"The Tenderer is to note the following colour specifications and their application:"]
[null,"1. Internal doors are to be Plascon E14-5 Sombrero"]
[null,"2. Internal and External door frames to be Plascon E14-4 Mayan Stone"]
[null,"3. Windows (steel) to be Plascon enamel/gloss (white)"]
[null,"4. All walls and ceilings to kithen and ablutions to be Plascon Double Velvet (white)"]
[null,"5. Internal walls to office areas to be Plascon E14-2 Hudson"]
[null,"6. External walls to be Plascon A11-5 Gruy"]
[]
[null,"   E14 – 3 (Papyrus) "]
[null,"Plascon Emeralda blue or any paint that matches Eskom’s blue – Pantone 287 (only to be used as an accent colour in very small amounts)"]
[]
[]
[null,"ON FLOATED PLASTER"]
[]
[null,"Prepare surfaces and remove all loose material, apply one coat 'Plascon Merit Plaster Primer' and two coats 'Plascon Polvin Super Acrylic' paint:"]
[]
["B16.1","On interior walls.","m²",0,null,{"$f":"+IF($D1437=\"\",\"\",IF($D1437=0,\"rate only\",$D1437*(E1437)))","v":"rate only"}]
[]
["B16.2","On interior ceilings.","m²",0,null,{"$f":"+IF($D1439=\"\",\"\",IF($D1439=0,\"rate only\",$D1439*(E1439)))","v":"rate only"}]
[]
[]
[null,"ON SKIM PLASTER"]
[]
[null,"Prepare surfaces and remove all loose material, apply one coat 'Plascon Merit Plaster Primer' and three coats 'Plascon Double Velvet Pure Acrylic' paint:"]
[]
["B16.3","On interior walls.","m²",0,null,{"$f":"+IF($D1446=\"\",\"\",IF($D1446=0,\"rate only\",$D1446*(E1446)))","v":"rate only"}]
[]
["B16.4","On ceilings and cornices.","m²",0,null,{"$f":"+IF($D1448=\"\",\"\",IF($D1448=0,\"rate only\",$D1448*(E1448)))","v":"rate only"}]
[]
[]
[null,"INTERNAL PAINT"]
[]
[null,"ON WOOD"]
[]
[null,"Prepare and apply three coats 'Plascon Woodcare Woodcoat Polyurethane' X33/X44 suede clear varnish:"]
[]
["B16.5","On doors.","m²",0,null,{"$f":"+IF($D1457=\"\",\"\",IF($D1457=0,\"rate only\",$D1457*(E1457)))","v":"rate only"}]
[]
["B16.6","On door frames.","m²",0,null,{"$f":"+IF($D1459=\"\",\"\",IF($D1459=0,\"rate only\",$D1459*(E1459)))","v":"rate only"}]
[]
["B16.7","On skirtings, rails, etc not exceeding 300 mm girth","m",0,null,{"$f":"+IF($D1461=\"\",\"\",IF($D1461=0,\"rate only\",$D1461*(E1461)))","v":"rate only"}]
[]
["B16.8","On timber floors","m²",0,null,{"$f":"+IF($D1463=\"\",\"\",IF($D1463=0,\"rate only\",$D1463*(E1463)))","v":"rate only"}]
[]
[null,"Stop, fill, sand down and prepare wood surfaces and apply one coat 'Plascon Oil Wood Primer', one coat 'Plascon Merit Universal Undercoat' and two coats 'Plascon Velvaglo Polyurethane Enamel' paint:"]
[]
["B16.9","On interior doors.","m²",0,null,{"$f":"+IF($D1467=\"\",\"\",IF($D1467=0,\"rate only\",$D1467*(E1467)))","v":"rate only"}]
[]
["B16.10","On door frames.","m²",0,null,{"$f":"+IF($D1469=\"\",\"\",IF($D1469=0,\"rate only\",$D1469*(E1469)))","v":"rate only"}]
[]
[null,"Plascon Professional Evolution Acrylic to interior new gypsum plaster board. Surface to be dry, sound and free of dirt and loose particles. Wipe down with a damp cloth and allow to dry completely. Prime with one coat Professional Plaster Primer (PP 700) with an over coating time of 16 hours and finish with three coats Professional Evolution Acrylic (PEV 900) with 2 hours drying time between coats, for a maintenance cycle of 7 years in a C1 - inland environment."]
[]
["B16.11","Gypsum ceiling boards and cornices","m²",0,null,{"$f":"+IF($D1473=\"\",\"\",IF($D1473=0,\"rate only\",$D1473*(E1473)))","v":"rate only"}]
[]
[]
[null,"ON METAL"]
[]
[null,"Prepare surfaces and remove all loose material, dust, grease, salts and contamination with 'Plascon Aquasolve Degreaser GR1', rinse and apply one coat 'Plascon Galvogrip Metal Primer', apply one coat 'Plascon Merit Universal Undercoat' and two coats  'Plascon Super Universal Enamel' paint:"]
[]
["B16.12","On galvanised steel door frames.","m²",0,null,{"$f":"+IF($D1480=\"\",\"\",IF($D1480=0,\"rate only\",$D1480*(E1480)))","v":"rate only"}]
[]
["B16.13","On galvanised steel windows (Both sides measured).","m²",0,null,{"$f":"+IF($D1482=\"\",\"\",IF($D1482=0,\"rate only\",$D1482*(E1482)))","v":"rate only"}]
[]
[null,"Painting specification (Hot Dipped Galvanised):"]
[]
["B16.14","Wash down all steelwork thoroughly with Plascon liquid galvanised iron cleaner, scotchbright and water to manufacturers specification and allow to dry."]
[]
["B16.15","All coats to be applied according to manufacturer's specifications."]
[]
[null,"Spot priming defects in pre primed surfaces with \"Plascon Namelcoat Synthetic Metal\" apply one coat \"Plascon Merit Universal Undercoat\" and three coats \"Plascon Super Universal Enamel\" paint on primed steel surfaces:"]
[]
["B16.16","On strong room door and frame.","m²",0,null,{"$f":"+IF($D1492=\"\",\"\",IF($D1492=0,\"rate only\",$D1492*(E1492)))","v":"rate only"}]
[]
[]
[null,"PROTECTIVE ROOFING PAINT"]
[]
[null,"Two coats approved silver reflective roof paint (dulux / plascon):"]
[]
["B16.17","On waterproofing to roofs and box gutters.","m²",0,null,{"$f":"+IF($D1499=\"\",\"\",IF($D1499=0,\"rate only\",$D1499*(E1499)))","v":"rate only"}]
[]
[null,"Sub-Total",null,null,{"$f":"SUM(E1403:E1499)","v":0}]
[]
[null,"NO. 17 PLUMBING AND DRAINAGE"]
[]
[]
[null,"RAINWATER DISPOSAL "]
[]
[null,"\"Watertite\"  or other equally approved PVC gutters, etc. "]
[]
["B17.1","100 x 75mm Eaves gutters","m",0,null,{"$f":"+IF($D1510=\"\",\"\",IF($D1510=0,\"rate only\",$D1510*(E1510)))","v":"rate only"}]
[]
["B17.2","Extra over eaves gutter for stopped end","No",0,null,{"$f":"+IF($D1512=\"\",\"\",IF($D1512=0,\"rate only\",$D1512*(E1512)))","v":"rate only"}]
[]
["B17.3","Extra over eaves gutter for angle","No",0,null,{"$f":"+IF($D1514=\"\",\"\",IF($D1514=0,\"rate only\",$D1514*(E1514)))","v":"rate only"}]
[]
["B17.4","Extra over  eaves gutter for outlet for 75 x 75mm pipe","No",0,null,{"$f":"+IF($D1516=\"\",\"\",IF($D1516=0,\"rate only\",$D1516*(E1516)))","v":"rate only"}]
[]
["B17.5","75 x 75mm Rainwater pipes","m",0,null,{"$f":"+IF($D1518=\"\",\"\",IF($D1518=0,\"rate only\",$D1518*(E1518)))","v":"rate only"}]
[]
["B17.6","75mm diameter Rainwater pipes","m",0,null,{"$f":"+IF($D1520=\"\",\"\",IF($D1520=0,\"rate only\",$D1520*(E1520)))","v":"rate only"}]
[]
["B17.7","Extra over  rainwater pipe for shoe","No",0,null,{"$f":"+IF($D1522=\"\",\"\",IF($D1522=0,\"rate only\",$D1522*(E1522)))","v":"rate only"}]
[]
["B17.8","Extra over  rainwater pipe for bends","No",0,null,{"$f":"+IF($D1524=\"\",\"\",IF($D1524=0,\"rate only\",$D1524*(E1524)))","v":"rate only"}]
[]
["B17.9","Extra over  rainwater pipe for eaves or plinth offset 600mm","No",0,null,{"$f":"+IF($D1526=\"\",\"\",IF($D1526=0,\"rate only\",$D1526*(E1526)))","v":"rate only"}]
[null," projection"]
[]
[]
[null,"SANITARY FITTINGS ETC "]
[]
[null,"Vitreous China/Ceramic Fireclay fittings including"]
[null," assembling and fixing in position, expanding bolts and"]
[null," mortice in brick or concrete walls, connecting up to waste"]
[null," and water supplies complete and sealed around "]
[]
["B19.10","90 Degree outlet with heavy duty flap","No",0,null,{"$f":"+IF($D1537=\"\",\"\",IF($D1537=0,\"rate only\",$D1537*(E1537)))","v":"rate only"}]
[null," seat and complete with matching 11 litre  cistern complete with"]
[null," lid, fitments, and flushpipe elbow.  "]
[]
["B17.11","90 Degree outlet wash downpan with","No",0,null,{"$f":"+IF($D1541=\"\",\"\",IF($D1541=0,\"rate only\",$D1541*(E1541)))","v":"rate only"}]
[null," heavy duty flap seat and complete with matching 11 litre cistern"]
[null,"  complete with lid, fitments, and  purpose made"]
[null," CP side flush lever."]
[]
["B17.12","White wall mounted bowl urinal with back inlet","No",0,null,{"$f":"+IF($D1546=\"\",\"\",IF($D1546=0,\"rate only\",$D1546*(E1546)))","v":"rate only"}]
[null," including 38mm CP domical grating, spreader"]
[null," with 20mm diameter thread and 2 no. hanger brackets"]
[]
["B17.13","White wash hand basin with two tapholes","No",0,null,{"$f":"+IF($D1550=\"\",\"\",IF($D1550=0,\"rate only\",$D1550*(E1550)))","v":"rate only"}]
[null," complete with 301-32 CP brass waste and 309-32 anti-theft"]
[null," plug on brackets fixed to tiled wall "]
[]
[null,"Sub-Total",null,null,{"$f":"SUM(E1505:E1550)","v":0}]
[]
[]
[]
[null,"FOR ANY ITEMS NOT COVERED IN THIS BILL, THE Tenderer WILL BE REQUIRED TO REFER TO THE SCHEDULES OF RATES Pricelist."]
[]
[null,"Labour Rates - As per Schedule of Rates Bill"]
[]
[null,"Materials - As per Schedule of Rates Bill"]
[]
[null,"Transport - As per Schedule of Rates Bill"]
[]
[null,"Subcontract  - As per Schedule of Rates Bill"]
[]
[]
[null,"Sub-Total "]

{"sheet":"EXTERNAL WORKS","index":4,"n_rows":348,"n_cols":7,"rows_kept":348,"merged":[[5,0,6,6]]}
[]
[{"$nulls":3},"TRANSMISSION NORTHERN GRID"]
[]
[]
[]
["SECTION NO. 3 : EXTERNAL WORKS"]
[]
[]
["ITEM NO.","SANS / DRAWING NUMBER","DESCRIPTION","UNIT","QUANTITY ","RATE","AMOUNT"]
[null,null,"EARTHWORKS AND DRAINAGE"]
[null,null,"Please Note: Contractor is to undertake site survey and quantity verification and price accordingly."]
[null,null,"Earthworks for Road and Yard Platforms"]
[]
[1,"SANS 1200C","Site Clearing","m²",0,null,{"$f":"+IF($E14=\"\",\"\",IF($E14=0,\"rate only\",$E14*(F14)))","v":"rate only"}]
[]
[null,"SANS 1200D","Earthworks\nPlease Note: Contractor is to undertake site survey and quantity verification and price accordingly. Contractor is price for all risks under this item, no compensation will be granted during the Construction stage should the quantities increase more than the stipulated amount in the Contractor's priced Pricelist."]
[2,"\n8.3.2","Extra over item 1.1.2 for excavation of boulders and hard rock (provisional). \nAll rock and boulder holes to be verified by the Project Engineer prior to excavation. \nNote: Rate to include excavation, backfill and compaction.","m3",0,null,{"$f":"+IF($E17=\"\",\"\",IF($E17=0,\"rate only\",$E17*(F17)))","v":"rate only"}]
[]
[3,null,"Rock excavations using non explosive methods","m3",0,null,{"$f":"+IF($E19=\"\",\"\",IF($E19=0,\"rate only\",$E19*(F19)))","v":"rate only"}]
[]
[4,null,"Excavation of boulders ","m3",0,null,{"$f":"+IF($E21=\"\",\"\",IF($E21=0,\"rate only\",$E21*(F21)))","v":"rate only"}]
[]
[5,"8.3.2","Cut to spoil in all materials, measured in cut (provisional). To be stockpiled in an accessible position adjacent to the site. Stockpile to be separate from the \"Topsoil\" stockpile. Stockpile to be contained to prevent erosion as per the detailed specification. Stockpile soil to be used later as instructed by the Engineer and as per the detailed specification and drawings. ","m3",0,null,{"$f":"+IF($E23=\"\",\"\",IF($E23=0,\"rate only\",$E23*(F23)))","v":"rate only"}]
[]
[6,"8.3.4","Cut  to fill and Compact to 90 % of modified AASHTO maximum density","m3",0,null,{"$f":"+IF($E25=\"\",\"\",IF($E25=0,\"rate only\",$E25*(F25)))","v":"rate only"}]
[]
[7,"8.3.4","Borrow to fill (G9) and Compact to 90 % of modified AASHTO maximum density","m3",0,null,{"$f":"+IF($E27=\"\",\"\",IF($E27=0,\"rate only\",$E27*(F27)))","v":"rate only"}]
[]
[null,null,"Ripping material in cut and fill areas to depth of 150mm and recompacting to 90% MOD AASHTO.","m3",0,null,{"$f":"+IF($E29=\"\",\"\",IF($E29=0,\"rate only\",$E29*(F29)))","v":"rate only"}]
[]
[8,null,"Ripping material in cut and fill areas to depth of 150mm and recompacting to 93% MOD AASHTO (with G9 in-situ material).","m3",0,null,{"$f":"+IF($E31=\"\",\"\",IF($E31=0,\"rate only\",$E31*(F31)))","v":"rate only"}]
[]
[9,null,"Concrete and brick work required for the Oil Dam (incl. Manhole and 300mm diameter concrete pipe with collars, spigots, sockets, outlet pipe clamps, steel reinforcement, etc.) - Complete.","No",0,null,{"$f":"+IF($E33=\"\",\"\",IF($E33=0,\"rate only\",$E33*(F33)))","v":"rate only"}]
[]
[]
[null,null,"STORMWATER DRAIN COVERS"]
[]
[]
[10,null,"230  x 230mm Steel cover plate","No",0,null,{"$f":"+IF($E39=\"\",\"\",IF($E39=0,\"rate only\",$E39*(F39)))","v":"rate only"}]
[]
[11,null,"1000  x 230mm Steel cover plate","No",0,null,{"$f":"+IF($E41=\"\",\"\",IF($E41=0,\"rate only\",$E41*(F41)))","v":"rate only"}]
[]
[]
[null,null,"GABION BASKETS /  RENO MATRASSES AND STONES"]
[]
[null,null,"Refer to SANS 1580 type 80 2001"]
[]
[]
[12,null,"Concrete blinding layer 25Mpa/ 100mm thick with 6mm brc mesh","m²",0,null,{"$f":"+IF($E49=\"\",\"\",IF($E49=0,\"rate only\",$E49*(F49)))","v":"rate only"}]
[]
[13,null,"Supply and fill Gabion stones ","m³",0,null,{"$f":"+IF($E51=\"\",\"\",IF($E51=0,\"rate only\",$E51*(F51)))","v":"rate only"}]
[]
[]
[null,null,"GABION BASKETS"]
[]
[null,null,"L x W x H (V)in cubi meters"]
[]
[14,null,"1 x 1 x 0.5 (0.5m³)","No",0,null,{"$f":"+IF($E58=\"\",\"\",IF($E58=0,\"rate only\",$E58*(F58)))","v":"rate only"}]
[]
[15,null,"2 x 1 x 0.5  (1m³)","No",0,null,{"$f":"+IF($E60=\"\",\"\",IF($E60=0,\"rate only\",$E60*(F60)))","v":"rate only"}]
[]
[16,null,"3 x 1 x 0.5 (1.5m³)","No",0,null,{"$f":"+IF($E62=\"\",\"\",IF($E62=0,\"rate only\",$E62*(F62)))","v":"rate only"}]
[]
[17,null,"4  x 1 x 0.5  (2m³)","No",0,null,{"$f":"+IF($E64=\"\",\"\",IF($E64=0,\"rate only\",$E64*(F64)))","v":"rate only"}]
[]
[18,null,"1.5  x 1 x 1 (1.5m³)","No",0,null,{"$f":"+IF($E66=\"\",\"\",IF($E66=0,\"rate only\",$E66*(F66)))","v":"rate only"}]
[]
[19,null,"1  x 1 x 1  (1m³)","No",0,null,{"$f":"+IF($E68=\"\",\"\",IF($E68=0,\"rate only\",$E68*(F68)))","v":"rate only"}]
[]
[20,null,"2  x 1 x 1 (2m³)","No",0,null,{"$f":"+IF($E70=\"\",\"\",IF($E70=0,\"rate only\",$E70*(F70)))","v":"rate only"}]
[]
[21,null,"3  x 1 x 1 (3m³)","No",0,null,{"$f":"+IF($E72=\"\",\"\",IF($E72=0,\"rate only\",$E72*(F72)))","v":"rate only"}]
[]
[22,null,"4 x 1 x 1 (4m³)","No",0,null,{"$f":"+IF($E74=\"\",\"\",IF($E74=0,\"rate only\",$E74*(F74)))","v":"rate only"}]
[]
[23,null,"2 × 0.5 × 0.5  (0.5m³)","No",0,null,{"$f":"+IF($E76=\"\",\"\",IF($E76=0,\"rate only\",$E76*(F76)))","v":"rate only"}]
[]
[]
[24,null,"Supply and fill Reno matress","m³",0,null,{"$f":"+IF($E79=\"\",\"\",IF($E79=0,\"rate only\",$E79*(F79)))","v":"rate only"}]
[]
[null,null,"L x W x H (V)in cubi meters"]
[]
[25,null,"2 x 1 x 0.3 (0.6m³)","No",0,null,{"$f":"+IF($E83=\"\",\"\",IF($E83=0,\"rate only\",$E83*(F83)))","v":"rate only"}]
[]
[26,null,"3 x 1 x 0.3 (0.9m³)","No",0,null,{"$f":"+IF($E85=\"\",\"\",IF($E85=0,\"rate only\",$E85*(F85)))","v":"rate only"}]
[]
[27,null,"4 x 1 x 0.3 (1.2m³)","No",0,null,{"$f":"+IF($E87=\"\",\"\",IF($E87=0,\"rate only\",$E87*(F87)))","v":"rate only"}]
[]
[28,null,"6 x 2 x 0.17 (2.04m³)","No",0,null,{"$f":"+IF($E89=\"\",\"\",IF($E89=0,\"rate only\",$E89*(F89)))","v":"rate only"}]
[]
[29,null,"6 x 2 x 0.23 (2.76m³)","No",0,null,{"$f":"+IF($E91=\"\",\"\",IF($E91=0,\"rate only\",$E91*(F91)))","v":"rate only"}]
[]
[30,null,"6 x 2 x 0.30 (3.60m³)","No",0,null,{"$f":"+IF($E93=\"\",\"\",IF($E93=0,\"rate only\",$E93*(F93)))","v":"rate only"}]
[]
[]
[null,null,"INTERLOCKING BLOCK RETAINING STRUCTURES "]
[]
[]
[null,null,"\"Loffelstein\" precast concrete interlocking planter blocks"]
[null,null," finished smooth on exposed surfaces "]
[]
[]
[null,null,"\"Loffelstein\" planter blocks are available in various sizes"]
[null,null," and in \"standard\" and \"heavy duty\" in each size. Type is"]
[null,null," dependent mainly of wall and soil conditions"]
[]
[31,null,"Retaining structure with stepped face and curves as required to","m²",0,null,{"$f":"+IF($E107=\"\",\"\",IF($E107=0,\"rate only\",$E107*(F107)))","v":"rate only"}]
[null,null," suit slopes of 500 x 450 x 170mm high type L300 interlocking"]
[null,null," planter blocks laid horizontal bed joints to a certain degree"]
[null,null," slope including backfilling with earth obtained from the"]
[null,null," excavations and filling the blocks with garden soil lightly tamped"]
[null,null," as the work proceeds"]
[null,null," joints to a certain degree slope including backfilling with earth"]
[null,null," obtained from excavations and filling the blocks with garden soil lightly tamped as the work proceeds"]
[]
[]
[null,null," ROADWORKS"]
[]
[null,null,"PREAMBLES"]
[]
[null,null,"The Tenderer is referred to the relevant clauses in the latest edition of the Model Preambles for Trades and to the Supplementary Preambles"]
[]
[]
[null,null,"SUPPLEMENTARY PREAMBLES"]
[]
[null,null,"Items, materials or methods to be used to be specified by trade names or catalogue numbers are only an indication of the quality required. Items, materials or methods of similar quality may be used with prior approval from the Eskom Service Manager/ Supervisorl."]
[]
[null,null,"Work described as 'remove' or 'removed' shall be expeditiously, permanently removed from the site."]
[]
[null,null,"The Tenderer must acquaint himself with the nature of material to be excavated."]
[]
[null,null,"Descriptions for excavations shall be deemed to include all ground conditions classifiable as 'earth' described in the above report and wh conditions of a more difficult character are indicated these will be separately measured."]
[]
[null,null,"The Contractor is to submit a detailed method statement to the Engineer for approval prior to undertaking this work."]
[]
[null,null,"Filling in accordance with SANS 1200 DM, to be supplied by Contractor:"]
[]
[32,null,"G7 material compacted to 95% Mod AASHTO density (overall thickness 150mm).","m³",0,null,{"$f":"+IF($E138=\"\",\"\",IF($E138=0,\"rate only\",$E138*(F138)))","v":"rate only"}]
[]
[33,null,"G5 material compacted to 95% Mod AASHTO density (overall thickness 150mm)","m³",0,null,{"$f":"+IF($E140=\"\",\"\",IF($E140=0,\"rate only\",$E140*(F140)))","v":"rate only"}]
[]
[34,null,"G4 material compacted to 95% Mod AASHTO density (overall thickness 150mm).","m³",0,null,{"$f":"+IF($E142=\"\",\"\",IF($E142=0,\"rate only\",$E142*(F142)))","v":"rate only"}]
[]
[35,null,"G2 material compacted to 95% Mod AASHTO density (overall thickness 150mm)","m³",0,null,{"$f":"+IF($E144=\"\",\"\",IF($E144=0,\"rate only\",$E144*(F144)))","v":"rate only"}]
[]
[null,null,"19mm Washed concrete stone (overall thickness 40mm).","m³",0,null,{"$f":"+IF($E146=\"\",\"\",IF($E146=0,\"rate only\",$E146*(F146)))","v":"rate only"}]
[]
[36,null,"Filling in accordance with SANS 1200 ME, to be supplied by Contractor:"]
[]
[37,null,"G4 sub base, stabilized with 3% cement to attain UCS 0.75 - 1.5 MPa after seven days and compacted to 97% Mod AASHTO density. (overall thickness 150mm).","m³",0,null,{"$f":"+IF($E150=\"\",\"\",IF($E150=0,\"rate only\",$E150*(F150)))","v":"rate only"}]
[]
[null,null,"C4 sub base, stabilized with 3,5% cement to attain UCS 0.75 - 1.5 MPa after seven days and compacted to 96% Mod AASHTO density (Roadways)","m³",0,null,{"$f":"+IF($E152=\"\",\"\",IF($E152=0,\"rate only\",$E152*(F152)))","v":"rate only"}]
[]
[null,null,"Surface Preparation:"]
[]
[38,null,"Trim and level off surface of ground (excavated under this Contract) to receive stone beds, including excavating or filling, ripping and scarifying as necessary and compacting the whole area for a depth of 150mm to a density of at least 93% Mod. AASHTO maximum density, to falls to maximum final slope of 1%.","m²",0,null,{"$f":"+IF($E156=\"\",\"\",IF($E156=0,\"rate only\",$E156*(F156)))","v":"rate only"}]
[]
[null,null,"Compaction of surfaces"]
[]
[39,null,"Compaction of ground surface under roadway paving including scarifying for a depth of 300mm in two 150mm layers, breaking down oversize material, adding suitable material wh necessary and compacting to 93% Mod AASHTO density","m²",0,null,{"$f":"+IF($E160=\"\",\"\",IF($E160=0,\"rate only\",$E160*(F160)))","v":"rate only"}]
[]
[null,null,"Bituminous premix road surfacing, by approved asphalting specialist, at municipal entrance:"]
[]
[40,null,"Sealer coat of cutback bitumen spread over base course at the rate of 0,7 litre per m2.","m²",0,null,{"$f":"+IF($E164=\"\",\"\",IF($E164=0,\"rate only\",$E164*(F164)))","v":"rate only"}]
[]
[41,null,"60mm Medium mix asphalt to roads","m²",0,null,{"$f":"+IF($E166=\"\",\"\",IF($E166=0,\"rate only\",$E166*(F166)))","v":"rate only"}]
[]
[42,null,"40mm Medium mix asphalt to roads","m²",0,null,{"$f":"+IF($E168=\"\",\"\",IF($E168=0,\"rate only\",$E168*(F168)))","v":"rate only"}]
[]
[]
[null,null,"BOND AND INTERLOCKING CONCRETE BLOCK PAVERS"]
[]
[null,null,"Precast concrete block road surfacing:"]
[]
[null,null,"Block paving to be manufactured in accordance with SANS 1058"]
[]
[null,null,"Paving is to be laid in accordance with SANS 1200 MJ, SANS 1058 and the Concrete Manufacturer's Association Specifications."]
[]
[null,null,"Paving to be installed with a minimum longitudinal fall of 1% and a transverse fall of at least 2%"]
[]
[null,null,"Paving is to be laid to herringbone pattern on 25mm (thickness after final compaction) clean river sand (preparation of ground or filling elsewh)"]
[]
[null,null,"Clean sand is to be swept into joints between roadstones"]
[]
[null,null,"Paving must be resanded three months after laying."]
[]
[null,null,"80mm thick SANS 1058 type S-A (heavy duty G-block) as 'Infraset G-Blok' or other approved 35MPa Grey concrete interlocking paving blocks laid with butt joints on and including 25mm thick river sand bed with dry sand swept and vibrated into joints all laid on subgrade (elsewh measured) conforming to SANS 1200D degree of accuracy I:"]
[]
[43,null,"Paving in herringbone bond to roads,yards,parking areas to falls, side walks and pathways.","m²",0,null,{"$f":"+IF($E189=\"\",\"\",IF($E189=0,\"rate only\",$E189*(F189)))","v":"rate only"}]
[]
[null,null,"60mm thick SANS 1058 type S-A (heavy duty G-block) as 'Infraset G-Blok' 30MPa Grey concrete interlocking paving blocks laid with butt joints on and including 20mm thick river sand bed with dry sand swept and vibrated into joints all laid on subgrade (elsewh measured) conforming to SANS 1200D degree of accuracy I."]
[]
[44,null,"Paving to roads, yards, side walks and pathways","m²",0,null,{"$f":"+IF($E193=\"\",\"\",IF($E193=0,\"rate only\",$E193*(F193)))","v":"rate only"}]
[]
[]
[null,null,"PRECAST CONCRETE "]
[]
[null,null,"User note:  "]
[]
[null,null,"The following precast concrete paving descriptions are only to"]
[null,null," be used when paving slabs etc are purpose made to detailed"]
[null,null," specifications and other than those available ex stock "]
[]
[null,null,"Slab paving of 500 x 500 x 50mm precast concrete slabs"]
[null,null," with pattened finish laid on 50mm thick river sand bed"]
[null,null," including preparation of ground or filling "]
[]
[45,null,"Paving laid with butt joints ","m²",0,null,{"$f":"+IF($E208=\"\",\"\",IF($E208=0,\"rate only\",$E208*(F208)))","v":"rate only"}]
[]
[46,null,"Paving laid with butt joints to falls ","m²",0,null,{"$f":"+IF($E210=\"\",\"\",IF($E210=0,\"rate only\",$E210*(F210)))","v":"rate only"}]
[]
[]
[null,null,"SOIL POISONING:"]
[]
[null,null,"Approved brand of anti-termite soil poison applied by a Registd Pest Control company and guaranteed against termite infestation for ten years:"]
[]
[47,null,"Under concrete interlocking paving blocks including forming and poisoning shallow furrows against edges, etc., filling in furrows and ramming.","m²",0,null,{"$f":"+IF($E217=\"\",\"\",IF($E217=0,\"rate only\",$E217*(F217)))","v":"rate only"}]
[]
[null,null,"Weedkiller:"]
[]
[48,null," 'Weedmaster Turfmaster' or equal approved weed killer mixed in the proportion of 1 litre weed killer to 50 litres of water and applied at a rate of 0,5 litres/m2 to surface below paving","m²",0,null,{"$f":"+IF($E221=\"\",\"\",IF($E221=0,\"rate only\",$E221*(F221)))","v":"rate only"}]
[]
[]
[null,null,"PRECAST CONCRETE KERBING"]
[]
[null,null,"Descriptions:"]
[]
[null,null,"Precast concrete kerbs finished smooth on exposed surfaces including 20mm cement mortar 1:3 bedding, cutting and pointing, with 25MPa/ 19mm unreinforced concrete foundation, haunching and channel:"]
[]
[null,null,"Kerb (SANS 927) 125 x 230mm high with 300 x 100mm strip foundation and 150 x 150mm haunching at back, including excavation, backfilling, formwork, etc.:"]
[]
[49,null,"Kerb fig 6.","m",0,null,{"$f":"+IF($E232=\"\",\"\",IF($E232=0,\"rate only\",$E232*(F232)))","v":"rate only"}]
[]
[]
[null,null,"CARPORTS ( REFER TO ESKOM SPECIFICATION )"]
[]
[50,null,"5m x 3m Single bay","No",0,null,{"$f":"+IF($E237=\"\",\"\",IF($E237=0,\"rate only\",$E237*(F237)))","v":"rate only"}]
[]
[51,null,"5m x 5m Double bay","No",0,null,{"$f":"+IF($E239=\"\",\"\",IF($E239=0,\"rate only\",$E239*(F239)))","v":"rate only"}]
[]
[52,null,"7.5m x 5m Tripple bay","No",0,null,{"$f":"+IF($E241=\"\",\"\",IF($E241=0,\"rate only\",$E241*(F241)))","v":"rate only"}]
[]
[53,null,"10m x 5 quad bay","No",0,null,{"$f":"+IF($E243=\"\",\"\",IF($E243=0,\"rate only\",$E243*(F243)))","v":"rate only"}]
[]
[]
[null,null,"FENCING AND GATES"]
[]
[null,null,"Fencing  including site clearance and preparation of groung:"]
[]
[54,null,"Supply and install steel palisade fence – 1.8m or 2.4m high, angle iron to be 3mm thick hot dip galvanised. Spacing between the vertically mounted angle iron to be 100mm. posts to be at 2m intervals. Bracing upper and lower ( 1.8m )and tripple bracing for 2.4m.","m",0,null,{"$f":"+IF($E250=\"\",\"\",IF($E250=0,\"rate only\",$E250*(F250)))","v":"rate only"}]
[]
[55,null,"Supply and Install Diamond mesh fencing at 1.8 Meters high including Lockable Gate 1.8m high x 3.6m wide"]
[]
[]
[56,null,"Supply and install  6m motorized gate (sliding)","No.",0,null,{"$f":"+IF($E255=\"\",\"\",IF($E255=0,\"rate only\",$E255*(F255)))","v":"rate only"}]
[]
[57,null,"Supply and install 2 x 3.5m swing gates","No.",0,null,{"$f":"+IF($E257=\"\",\"\",IF($E257=0,\"rate only\",$E257*(F257)))","v":"rate only"}]
[]
[58,null,"Supply and install  7m sliding gate comprising of two sections with a removable pillar between the gates.","No.",0,null,{"$f":"+IF($E259=\"\",\"\",IF($E259=0,\"rate only\",$E259*(F259)))","v":"rate only"}]
[null,null,"Section one to be 4m and motorized and section two to be 3m and not"]
[null,null,"motorized. One of the two sections will include a personnel gate."]
[]
[59,null,"Supply and install  1.5m x 900mm  pedestrian gate.","No.",0,null,{"$f":"+IF($E263=\"\",\"\",IF($E263=0,\"rate only\",$E263*(F263)))","v":"rate only"}]
[]
[]
[null,null,"NON LETHAL FENCING AND ENERGISERS ( REFER TO ESKOM SPECIFICATION )"]
[]
[60,null,"Cut and remove wiring ","m",0,null,{"$f":"+IF($E268=\"\",\"\",IF($E268=0,\"rate only\",$E268*(F268)))","v":"rate only"}]
[]
[61,null,"Remove insulators","No.",0,null,{"$f":"+IF($E270=\"\",\"\",IF($E270=0,\"rate only\",$E270*(F270)))","v":"rate only"}]
[]
[62,null,"Replace insulators","N0.",0,null,{"$f":"+IF($E272=\"\",\"\",IF($E272=0,\"rate only\",$E272*(F272)))","v":"rate only"}]
[]
[63,null,"Rewire and crimp using existing or new wiring ","m",0,null,{"$f":"+IF($E274=\"\",\"\",IF($E274=0,\"rate only\",$E274*(F274)))","v":"rate only"}]
[]
[64,null,"Supply and install special galvanised brackets","No.",0,null,{"$f":"+IF($E276=\"\",\"\",IF($E276=0,\"rate only\",$E276*(F276)))","v":"rate only"}]
[]
[]
[null,null,"ENERGISERS"]
[]
[65,null,"Remove stinger unit","No.",0,null,{"$f":"+IF($E281=\"\",\"\",IF($E281=0,\"rate only\",$E281*(F281)))","v":"rate only"}]
[]
[66,null,"Repair stinger unit","No.",0,null,{"$f":"+IF($E283=\"\",\"\",IF($E283=0,\"rate only\",$E283*(F283)))","v":"rate only"}]
[]
[67,null,"Install stinger unit","No.",0,null,{"$f":"+IF($E285=\"\",\"\",IF($E285=0,\"rate only\",$E285*(F285)))","v":"rate only"}]
[]
[]
[null,null,"SLIDING GATES MOTORS"]
[]
[68,null,"Supply and install sliding gate motor with 2 remotes, one receiver, metal security bracket with a discus lock ( centurion D5 )","No.",0,null,{"$f":"+IF($E290=\"\",\"\",IF($E290=0,\"rate only\",$E290*(F290)))","v":"rate only"}]
[]
[69,null,"Supply and install sliding gate motor with 2 remotes, one receiver, metal security bracket with a discus lock ( centurion D10 )","No.",0,null,{"$f":"+IF($E292=\"\",\"\",IF($E292=0,\"rate only\",$E292*(F292)))","v":"rate only"}]
[]
[70,null,"Remove and repair sliding gate motor( centurion D5 )","No.",0,null,{"$f":"+IF($E294=\"\",\"\",IF($E294=0,\"rate only\",$E294*(F294)))","v":"rate only"}]
[]
[71,null,"Remove and repair sliding gate motor( centurion D10 ) ","No.",0,null,{"$f":"+IF($E296=\"\",\"\",IF($E296=0,\"rate only\",$E296*(F296)))","v":"rate only"}]
[]
[72,null,"Remove and replace batteries ( with lead acid type or equivalent )","No",0,null,{"$f":"+IF($E298=\"\",\"\",IF($E298=0,\"rate only\",$E298*(F298)))","v":"rate only"}]
[]
[73,null,"Remove and replace wheels.","No.",0,null,{"$f":"+IF($E300=\"\",\"\",IF($E300=0,\"rate only\",$E300*(F300)))","v":"rate only"}]
[]
[74,null,"Remove and replace gate sensors","No.",0,null,{"$f":"+IF($E302=\"\",\"\",IF($E302=0,\"rate only\",$E302*(F302)))","v":"rate only"}]
[]
[75,null,"Remove and replace centurion  receiver","No.",0,null,{"$f":"+IF($E304=\"\",\"\",IF($E304=0,\"rate only\",$E304*(F304)))","v":"rate only"}]
[]
[76,null,"Supply and install one metal security bracket with a discus lock.","No.",0,null,{"$f":"+IF($E306=\"\",\"\",IF($E306=0,\"rate only\",$E306*(F306)))","v":"rate only"}]
[]
[]
[null,null,"SWING GATES MOTORS"]
[]
[77,null,"Supply and install swing  gate motor with receiver ( centurion vector 500 )","No.",0,null,{"$f":"+IF($E311=\"\",\"\",IF($E311=0,\"rate only\",$E311*(F311)))","v":"rate only"}]
[]
[78,null,"Supply and install swing gate motor with receiver and 2 remotes( hansa ) ","No.",0,null,{"$f":"+IF($E313=\"\",\"\",IF($E313=0,\"rate only\",$E313*(F313)))","v":"rate only"}]
[]
[79,null,"Remove swing  gate motor with receiver  ( centurion vector 500 )","No.",0,null,{"$f":"+IF($E315=\"\",\"\",IF($E315=0,\"rate only\",$E315*(F315)))","v":"rate only"}]
[]
[80,null,"Remove swing  gate motor with receiver  ( hansa )","No.",0,null,{"$f":"+IF($E317=\"\",\"\",IF($E317=0,\"rate only\",$E317*(F317)))","v":"rate only"}]
[]
[81,null,"Remove and replace batteries ( with lead acid type or equivalent )","No",0,null,{"$f":"+IF($E319=\"\",\"\",IF($E319=0,\"rate only\",$E319*(F319)))","v":"rate only"}]
[]
[82,null,"Remove and repair swing gate (centurion vector 500 )","No",0,null,{"$f":"+IF($E321=\"\",\"\",IF($E321=0,\"rate only\",$E321*(F321)))","v":"rate only"}]
[]
[83,null,"Remove and repair swing gate (hansa )","No",0,null,{"$f":"+IF($E323=\"\",\"\",IF($E323=0,\"rate only\",$E323*(F323)))","v":"rate only"}]
[]
[84,null,"Remove and replace wheels","No.",0,null,{"$f":"+IF($E325=\"\",\"\",IF($E325=0,\"rate only\",$E325*(F325)))","v":"rate only"}]
[]
[85,null,"Remove and replace gate sensors","No.",0,null,{"$f":"+IF($E327=\"\",\"\",IF($E327=0,\"rate only\",$E327*(F327)))","v":"rate only"}]
[]
[86,null,"Remove and replace centurion  receiver","No.",0,null,{"$f":"+IF($E329=\"\",\"\",IF($E329=0,\"rate only\",$E329*(F329)))","v":"rate only"}]
[]
[]
[null,null,"RIPPING UP AND REMOVE OF EXISTING"]
[]
[87,null,"Ripping up and remove G2-G9 material compacted to 95% Mod AASHTO density","m³",0,null,{"$f":"+IF($E334=\"\",\"\",IF($E334=0,\"rate only\",$E334*(F334)))","v":"rate only"}]
[]
[88,null,"30mm Premix paving and prepare surface for new","m²",0,null,{"$f":"+IF($E336=\"\",\"\",IF($E336=0,\"rate only\",$E336*(F336)))","v":"rate only"}]
[]
[]
[null,null,"REMOVAL OF EXISTING BOND AND INTERLOCKING CONCRETE BLOCK PAVERS"]
[]
[null,null,"Carefully remove precast concrete block road surfacing and set aside for re-use"]
[]
[89,null,"Remove 80mm G-block paving ","m²",0,null,{"$f":"+IF($E343=\"\",\"\",IF($E343=0,\"rate only\",$E343*(F343)))","v":"rate only"}]
[]
[90,null,"Remove slab paving of 500 x 500 x 50mm precast concrete slabs","m²",0,null,{"$f":"+IF($E345=\"\",\"\",IF($E345=0,\"rate only\",$E345*(F345)))","v":"rate only"}]
[]
[91,null,"Removal of yard stones, excavation( 3-4m deep, 1.5m wide), supply and install bedding and geofabric material, supply and install 110mm geotech pipe, supply and install heavy duty insulating plastic material, fill up and compact soil to 93% aashto, fill yard stone back to 100mm above soil.","m",0,null,{"$f":"+IF($E347=\"\",\"\",IF($E347=0,\"rate only\",$E347*(F347)))","v":"rate only"}]
[null,null,"Sub-Total",null,null,{"$f":"SUM(F14:F347)","v":0}]

{"sheet":"LABOUR RATES","index":5,"n_rows":173,"n_cols":6,"rows_kept":173,"merged":[[4,0,5,5]]}
[]
[null,null,"TRANSMISSION NORTHERN GRID"]
[]
[]
["SECTION 4: SCHEDULE OF RATES"]
[]
["ITEM NO.","DESCRIPTION","UNIT","QUANTITY","RATE","AMOUNT"]
[]
[]
[null,"These rates will be applicable to the relevant type of works and Price list."]
[null,"The following are the required skills per trade that the Contractor will be required to possess to carry out works on this contract."]
[]
[null,"SKILLED - ELECTRICAL"]
[]
[null,"Qualification -Trade test by accredited trade facility"]
[]
[null,"Work Experience -Electrician's experience (min 5 years) -Commercial, Industrial and or Residential buildings, after been qualified as Electrician.                                                                       "]
[]
[null,"SKILLED - AIRCON TECHNICIAN"]
[]
[null,"Qualifications - Trade test certificate for Air Conditioning and Certificates from Manufacturers ie.from Daiken/Mitsubishi/Carrier/Samsung/LG"]
[]
[null,"Work Experience - experience (min 5 years) in Building HVAC and domestic airconditioning in Commercial, Industrial and Residential Buildings Certificates from Manufacturers i.e from Daiken/Mitsubishi/Carrier/Samsung/LG"]
[]
[null,"SKILLED - PLUMBER"]
[]
[null,"Qualification - Plumbing Apprentice Qualification by accredited facility                    "]
[]
[null,"Work Experience - experience (min 3 years) in Industrial and Residential plumbing"]
[]
[null,"SKILLED ARTISAN - (Building/civil/general maintenance)"]
[]
[null,"Qualification- Trade test by accredited trade facility"]
[]
[null,"Work Experience - Minimum 3 years post apprentice experience"]
[]
[null,"SKILLED ARTISAN - LIFT MECHANIC"]
[]
[null,"Qualification- Trade test by accredited trade facility"]
[]
[null,"Work Experience - Minimum 3 years post apprentice experience"]
[]
[null,"ELECTRICAL ASSISTANT"]
[]
[null,"Electrical experience (2-3 years) on Commercial, Industrial and or Residential buildings.                                                          "]
[]
[null,"AIRCON TECHNICIAN ASSISTANT"]
[]
[null,"Experience (2-3 years) in Building HVAC and domestic airconditioning in Commercial, Industrial and Residential Buildings"]
[]
[null,"PLUMBER ASSISTANT"]
[]
[null,"Experience (2-3 years) in Industrial and Residential plumbing"]
[]
[null,"ARTISAN ASSISTANT(Building/Cvil/Structural /Lifts/general maintenance) "]
[]
[null,"Experience (2-3 years) on Commercial, Industrial and or Residential building works/maintenance.                                                          "]
[]
[]
[null,"LABOUR RATES "]
[]
[null,"The Tenderer is advised that the following items are Labour Rates for items not covd in this Pricelist except for the On Site Services. Labour rates to be all inclusive of overheads,profit, employee benefits,employer benefits etc.. No additional claims per hour will be entertained after contract award. "]
[null,"Tenderers are advised that all labour charges and transport charges must be procured from the closest to the effected site."]
[]
[null,"The cost of travelling time is for the Contractor and not the Employer."]
[]
[null,"Any call out work commenced during working hours and completed after normal working hours will be compensated by using normal working hour rates only."]
[]
[null,"Any call out work commenced after normal working hours will be compensated by using after normal working hour rates only."]
[]
[null,"Prior written approval must be received from the Eskom Transmission Service Manager/ Supervisor prior to commencement of any works."]
[]
[]
[1,"Civil Engineering inspections and reports by professional Engineer as and when required ","Hr",0,null,{"$f":"+IF($D74=\"\",\"\",IF($D74=0,\"rate only\",$D74*(E74)))","v":"rate only"}]
[]
[2,"Architectural inspections and reports by Professional Architect as and when required ","Hr",0,null,{"$f":"+IF($D76=\"\",\"\",IF($D76=0,\"rate only\",$D76*(E76)))","v":"rate only"}]
[]
[3,"Electrical inspections and reports by Professional Electrical Engineer as and when required ","Hr",0,null,{"$f":"+IF($D78=\"\",\"\",IF($D78=0,\"rate only\",$D78*(E78)))","v":"rate only"}]
[]
[4,"Mechanical  Engineering inspections and reports by Professional Mechanical Engineer as and when required","Hr",0,null,{"$f":"+IF($D80=\"\",\"\",IF($D80=0,\"rate only\",$D80*(E80)))","v":"rate only"}]
[]
[5,"Structural l Engineering inspections and reports by professional Engineer as and when required ","Hr",0,null,{"$f":"+IF($D82=\"\",\"\",IF($D82=0,\"rate only\",$D82*(E82)))","v":"rate only"}]
[]
[]
[null,"Work to be done from Monday to Friday between 7:30am and 4pm:"]
[]
["6","Skilled - Electrical ","Hr",0,null,{"$f":"+IF($D87=\"\",\"\",IF($D87=0,\"rate only\",$D87*(E87)))","v":"rate only"}]
[]
["7","Skilled Artisan- Building/ Civil / Alterations works","Hr",0,null,{"$f":"+IF($D89=\"\",\"\",IF($D89=0,\"rate only\",$D89*(E89)))","v":"rate only"}]
[]
["8","Skilled - Plumbing ","Hr",0,null,{"$f":"+IF($D91=\"\",\"\",IF($D91=0,\"rate only\",$D91*(E91)))","v":"rate only"}]
[]
["9","Skilled - Aircon Technician  ","Hr",0,null,{"$f":"+IF($D93=\"\",\"\",IF($D93=0,\"rate only\",$D93*(E93)))","v":"rate only"}]
[]
["10","Electrical  Assistant","Hr",0,null,{"$f":"+IF($D95=\"\",\"\",IF($D95=0,\"rate only\",$D95*(E95)))","v":"rate only"}]
[]
["11","Artisan Assistant- Building /Civil /Alterations works","Hr",0,null,{"$f":"+IF($D97=\"\",\"\",IF($D97=0,\"rate only\",$D97*(E97)))","v":"rate only"}]
[]
["12","Plumber Assistant","Hr",0,null,{"$f":"+IF($D99=\"\",\"\",IF($D99=0,\"rate only\",$D99*(E99)))","v":"rate only"}]
[]
["13","Aircon Technician Assistant  ","Hr",0,null,{"$f":"+IF($D101=\"\",\"\",IF($D101=0,\"rate only\",$D101*(E101)))","v":"rate only"}]
[]
["14","General worker - unskilled","Hr",0,null,{"$f":"+IF($D103=\"\",\"\",IF($D103=0,\"rate only\",$D103*(E103)))","v":"rate only"}]
[]
["15","Structural Engineer - Skilled","Hr",0,null,{"$f":"+IF($D105=\"\",\"\",IF($D105=0,\"rate only\",$D105*(E105)))","v":"rate only"}]
[]
[]
[null,"Work to be done from after hours and Saturdays"]
[]
["16","Skilled - Electrical ","Hr",0,null,{"$f":"+IF($D110=\"\",\"\",IF($D110=0,\"rate only\",$D110*(E110)))","v":"rate only"}]
[]
["17","Skilled Artisan- Building/ Civil / Alterations works","Hr",0,null,{"$f":"+IF($D112=\"\",\"\",IF($D112=0,\"rate only\",$D112*(E112)))","v":"rate only"}]
[]
["18","Skilled - Plumbing ","Hr",0,null,{"$f":"+IF($D114=\"\",\"\",IF($D114=0,\"rate only\",$D114*(E114)))","v":"rate only"}]
[]
[19,"Skilled - Aircon Technician  ","Hr",0,null,{"$f":"+IF($D116=\"\",\"\",IF($D116=0,\"rate only\",$D116*(E116)))","v":"rate only"}]
[]
[20,"Electrical  Assistant","Hr",0,null,{"$f":"+IF($D118=\"\",\"\",IF($D118=0,\"rate only\",$D118*(E118)))","v":"rate only"}]
[]
[21,"Artisan Assistant- Building /Civil /Alterations works","Hr",0,null,{"$f":"+IF($D120=\"\",\"\",IF($D120=0,\"rate only\",$D120*(E120)))","v":"rate only"}]
[]
[22,"Plumber Assistant","Hr",0,null,{"$f":"+IF($D122=\"\",\"\",IF($D122=0,\"rate only\",$D122*(E122)))","v":"rate only"}]
[]
[23,"Aircon Technician Assistant  ","Hr",0,null,{"$f":"+IF($D124=\"\",\"\",IF($D124=0,\"rate only\",$D124*(E124)))","v":"rate only"}]
[]
[24,"General worker - unskilled","Hr",0,null,{"$f":"+IF($D126=\"\",\"\",IF($D126=0,\"rate only\",$D126*(E126)))","v":"rate only"}]
[]
[25,"Structural Engineer - Skilled","Hr",0,null,{"$f":"+IF($D128=\"\",\"\",IF($D128=0,\"rate only\",$D128*(E128)))","v":"rate only"}]
[]
[]
[null,"Work to be done on Sundays and Public Holidays"]
[]
["26","Skilled - Electrical ","Hr",0,null,{"$f":"+IF($D133=\"\",\"\",IF($D133=0,\"rate only\",$D133*(E133)))","v":"rate only"}]
[]
["27","Skilled Artisan- Building/ Civil / Alterations works","Hr",0,null,{"$f":"+IF($D135=\"\",\"\",IF($D135=0,\"rate only\",$D135*(E135)))","v":"rate only"}]
[]
["28","Skilled - Plumbing ","Hr",0,null,{"$f":"+IF($D137=\"\",\"\",IF($D137=0,\"rate only\",$D137*(E137)))","v":"rate only"}]
[]
["29","Skilled - Aircon Technician  ","Hr",0,null,{"$f":"+IF($D139=\"\",\"\",IF($D139=0,\"rate only\",$D139*(E139)))","v":"rate only"}]
[]
["30","Electrical  Assistant","Hr",0,null,{"$f":"+IF($D141=\"\",\"\",IF($D141=0,\"rate only\",$D141*(E141)))","v":"rate only"}]
[]
["31","Artisan Assistant- Building /Civil /Alterations works","Hr",0,null,{"$f":"+IF($D143=\"\",\"\",IF($D143=0,\"rate only\",$D143*(E143)))","v":"rate only"}]
[]
["32","Plumber Assistant","Hr",0,null,{"$f":"+IF($D145=\"\",\"\",IF($D145=0,\"rate only\",$D145*(E145)))","v":"rate only"}]
[]
["33","Aircon Technician Assistant  ","Hr",0,null,{"$f":"+IF($D147=\"\",\"\",IF($D147=0,\"rate only\",$D147*(E147)))","v":"rate only"}]
[]
["34","General worker - unskilled","Hr",0,null,{"$f":"+IF($D149=\"\",\"\",IF($D149=0,\"rate only\",$D149*(E149)))","v":"rate only"}]
[]
["35","Structural Engineer - Skilled","Hr",0,null,{"$f":"+IF($D151=\"\",\"\",IF($D151=0,\"rate only\",$D151*(E151)))","v":"rate only"}]
[]
[]
[null,"Materials"]
[null,"Note : The Contractor must be able to produce material back-up (ie. Receipts, quotes, etc) when requested by the Employer."]
[]
[36,"Percentage Mark Up =10%                    ","Percentage"]
[]
[null,"Transport"]
[]
[null,"Payment for transport/traveling will be paid from local Eskom office  - to site and return"]
[]
[37,"Cost of transport/ travelling (Toll Fees to be allowed for in tendered rates) ","km",0,null,{"$f":"+IF($D163=\"\",\"\",IF($D163=0,\"rate only\",$D163*(E163)))","v":"rate only"}]
[]
[null,"Subcontract "]
[]
[null,"The Contractor will be required to provide quotations when the need arises, for the approval of Eskom. Eskom has the right to reject quotations and do its own market research,should Contractors quotations not be acceptable to Eskom. The Contractor will then be required to appoint the selected Supplier /sub contractor based on Eskom's recommendations."]
[]
[null,"The Contractor is not allowed to claim P&G % on work that is sub-contracted for non bill items, only the percentage mark-up can be claimed."]
[]
[38,"Percent mark up (profit and attendance) on sub-contracted works.","Percentage",0]
[]
[null,"Sub-Total",null,null,{"$f":"SUM(E74:E171)","v":0}]

{"sheet":"Electrical Works","index":6,"n_rows":148,"n_cols":6,"rows_kept":148,"merged":[[5,0,6,5]]}
[]
[null,null,"TRANSMISSION NORTHERN GRID"]
[]
[]
[]
["SECTION NO 5:  ELECTRICAL"]
[]
["ITEM NO.","DESCRIPTION","UNIT","QUANTITY","RATE","AMOUNT"]
[]
[null,"PRICING OF RATES"]
[]
[null,"All rates inserted in the Pricelist shall cover all costs, charges and profit that may be considd necessary for the carrying out and observance for the provisions of these \"Preambles to all Trades\"."]
[]
[null,"The Tenderer shall insert the amount required against each item which he wishes to price and not insert a lump sum covering a series of items. Only such priced items shall be considd in respect of any adjustment to the Contract Sum.  Items left unpriced will be understood to be covd in the rates for other items throughout these Bills of Quantities."]
[]
[null,"The Tenderer must refer to the Schedule of Rates bill and ensure the required skill profile for this Bill is utilised when carrying out works on site. Tenderers must make due allowance for this in their rates and no claims will be entertained in this regard after contract award."]
[]
[null,"Overtime work and normal work:"]
[]
[null,"The Tenderers are advised that the following works may be done during normal working hours as well as after normal working hours. Tenderers must make due allowance for these working hours in the pricing as no claims will be entertained in this regard."]
[]
[]
[null,"NOTE.   The  complete  electrical  installation  to  comply  with the  relevant  clauses  of  the  SABS  Code  of  Practise  for  the Wiring  of  Premises  SANS10142  -  1:2003  (previously  SABS 0142)"]
[]
[null,"All  equipment,  electrical  materials  or  methods  of  installation shall  comply  fully  with  SABS  0142-1  as  published  December 2001"]
[]
[null,"COC Certificate:"]
[]
[null,"Tenderers are advised that a COC must be supplied wh any electrical changes are done to the existing electrical system by the Contractor egg. fitting of plugs, switches, light fittings etc."]
[]
[null,"Proprietary items or materials:"]
[]
[null,"Proprietary  items  or  materials  wh  specified  are  to  be  of the  brand  specified  -  or  other  approved  -  by  the  Eskom Service Manager/ Supervisor"]
[]
[null,"The Tenderer to supply disposal certificates for all fluorescent tubes that are replaced"]
[]
[null,"GUARANTEE & MAINTENANCE"]
[]
[null,"Provision of a guarantee against defective parts and workmanship for a period of twelve months after the date of issue of the Completion Certificate"]
[]
[null,"UPS"]
[]
[null,"UPS's to be maintained on various sites. This will be done on an as and when required basis and a quote to be submitted by the Tenderer when this is required. "]
[]
[null,"CABLE TRENCHES"]
[]
[1,"Excavation not exceeding 2m deep for cable trenches including risk of collapse of excavations, keeping excavations free from water, setting aside excavated material and later refilling of trenches","m3",0,null,{"$f":"+IF($D47=\"\",\"\",IF($D47=0,\"rate only\",$D47*(E47)))","v":"rate only"}]
[]
[null,"SLEEVES"]
[]
[null,"Plasticised polyvinyl chloride (uPVC) sleeve piping including short lengths and jointing, laid in trench (trench and backfilling measured elsewh)"]
[]
[2,"50mm Diameter rigid pipes","m",0,null,{"$f":"+IF($D53=\"\",\"\",IF($D53=0,\"rate only\",$D53*(E53)))","v":"rate only"}]
[]
[3,"110mm Diameter rigid pipes","m",0,null,{"$f":"+IF($D55=\"\",\"\",IF($D55=0,\"rate only\",$D55*(E55)))","v":"rate only"}]
[]
[4,"150mm Diameter rigid pipes","m",0,null,{"$f":"+IF($D57=\"\",\"\",IF($D57=0,\"rate only\",$D57*(E57)))","v":"rate only"}]
[]
[]
[null,"HYDROBOILS"]
[]
[null,"Supply and fit including wiring , isolator switch fixed to walls. "]
[]
[5,"2,5 Litre \"Franke Zip Hydrofoil\"","No",0,null,{"$f":"+IF($D64=\"\",\"\",IF($D64=0,\"rate only\",$D64*(E64)))","v":"rate only"}]
[]
[6,"5.0 Litre Franke Zip Hydrofoil'","No",0,null,{"$f":"+IF($D66=\"\",\"\",IF($D66=0,\"rate only\",$D66*(E66)))","v":"rate only"}]
[]
[7,"7,5 Litre \"Franke Zip Hydrofoil\"","No",0,null,{"$f":"+IF($D68=\"\",\"\",IF($D68=0,\"rate only\",$D68*(E68)))","v":"rate only"}]
[]
[]
[null,"EARTHING LEAKAGE TEST"]
[]
[8,"Earth leakage test per DB board including providing a report- 2phase ","No",0,null,{"$f":"+IF($D73=\"\",\"\",IF($D73=0,\"rate only\",$D73*(E73)))","v":"rate only"}]
[]
[9,"Earth leakage test per DB board including providing a report - 3phase","No",0,null,{"$f":"+IF($D75=\"\",\"\",IF($D75=0,\"rate only\",$D75*(E75)))","v":"rate only"}]
[]
[]
[null,"SUPPLY ONLY OF LIGHT BULBS/ FLUORESCENT TUBES (SABS APPROVED ONLY)"]
[]
[10,"Light bulbs 220v (all watts)","No",0,null,{"$f":"+IF($D80=\"\",\"\",IF($D80=0,\"rate only\",$D80*(E80)))","v":"rate only"}]
[]
[11,"Fluorescent tubes slim line 1200 mm (all watts)","No",0,null,{"$f":"+IF($D82=\"\",\"\",IF($D82=0,\"rate only\",$D82*(E82)))","v":"rate only"}]
[]
[12,"Fluorescent tubes slim line 600 mm (all watts)","No",0,null,{"$f":"+IF($D84=\"\",\"\",IF($D84=0,\"rate only\",$D84*(E84)))","v":"rate only"}]
[]
[13,"LED tubes slim line 1200 mm (all watts)","No",0,null,{"$f":"+IF($D86=\"\",\"\",IF($D86=0,\"rate only\",$D86*(E86)))","v":"rate only"}]
[]
[14,"LED tubes slim line 600 mm (all watts)","No",0,null,{"$f":"+IF($D88=\"\",\"\",IF($D88=0,\"rate only\",$D88*(E88)))","v":"rate only"}]
[]
[15,"Down light globes 220v (all watts)","No",0,null,{"$f":"+IF($D90=\"\",\"\",IF($D90=0,\"rate only\",$D90*(E90)))","v":"rate only"}]
[]
[16,"Down light globes 12v (all watts)","No",0,null,{"$f":"+IF($D92=\"\",\"\",IF($D92=0,\"rate only\",$D92*(E92)))","v":"rate only"}]
[]
[17,"1.2m Spark proof 220 volts 72 watts","No",0,null,{"$f":"+IF($D94=\"\",\"\",IF($D94=0,\"rate only\",$D94*(E94)))","v":"rate only"}]
[]
[18,"Type a1: 36W \"Lisle LIH136 RC ECG\" 1200mm long one tube prismatic diffuser fluorescent fitting","No",0,null,{"$f":"+IF($D96=\"\",\"\",IF($D96=0,\"rate only\",$D96*(E96)))","v":"rate only"}]
[]
[19,"Type a2: 36W \"Lisle LIH236 RC ECG\" 1200mm long two tube prismatic diffuser fluorescent fitting","No",0,null,{"$f":"+IF($D98=\"\",\"\",IF($D98=0,\"rate only\",$D98*(E98)))","v":"rate only"}]
[]
[20,"Type a3: 58W \"Lisle LIH158 RC Prismatic/ECG\" 1500mm long one tube prismatic diffuser fluorescent fitting","No",0,null,{"$f":"+IF($D100=\"\",\"\",IF($D100=0,\"rate only\",$D100*(E100)))","v":"rate only"}]
[]
[21,"Type a4: 58W \"Lisle LIH258 RC Prismatic/ECG\" 1500mm long two tube prismatic diffuser fluorescent fitting","No",0,null,{"$f":"+IF($D102=\"\",\"\",IF($D102=0,\"rate only\",$D102*(E102)))","v":"rate only"}]
[]
[22,"Type a5: \"Lisle LIH258 ECG/Vapour\" 1500mm long two tube vapour proof fluorescent fitting","No",0,null,{"$f":"+IF($D104=\"\",\"\",IF($D104=0,\"rate only\",$D104*(E104)))","v":"rate only"}]
[]
[23,"Type a6: 36W \"Lisle LIH236 RC ECG/EM 50%\" 1200mm long two tube prismatic diffuser fluorescent fitting complete with 1 hour battery back-up, etc.","No",0,null,{"$f":"+IF($D106=\"\",\"\",IF($D106=0,\"rate only\",$D106*(E106)))","v":"rate only"}]
[]
[24,"Type b1: 18W \"Lisle LIH318 CI/Prismatic/ECG\" 600 x 600mm recessed three tube prismatic diffuser fluorescent fitting complete with 1,5m cab tyre, 3-pin plug top, etc.","No",0,null,{"$f":"+IF($D108=\"\",\"\",IF($D108=0,\"rate only\",$D108*(E108)))","v":"rate only"}]
[]
[25,"Type b2: 36W \"Lisle LIH336 CI/Prismatic/ECG\" 1200 x 600mm recessed three tube prismatic diffuser fluorescent fitting complete with 1,5m cab tyre, 3-pin plug top, etc.","No",0,null,{"$f":"+IF($D110=\"\",\"\",IF($D110=0,\"rate only\",$D110*(E110)))","v":"rate only"}]
[]
[26,"Type b3: 36W \"Lisle LIH336 CI/Prismatic/EM 50% for 1 hour/ECG\" 1200 x 600mm recessed three tube prismatic diffuser fluorescent fitting complete with 1 hour battery back-up, 1,5m cab tyre, 3-pin plug top, etc.","No",0,null,{"$f":"+IF($D112=\"\",\"\",IF($D112=0,\"rate only\",$D112*(E112)))","v":"rate only"}]
[]
[27,"Type c1: 13W \"Lisle LIH 1 P13\" 175mm diameter one lamp fluorescent down lighter with white trim complete with glass lens, 1,5m cab tyre, 3-pin plug top, etc.","No",0,null,{"$f":"+IF($D114=\"\",\"\",IF($D114=0,\"rate only\",$D114*(E114)))","v":"rate only"}]
[]
[28,"Type c2: 18W \"Lisle LIH 1 P18\" 215mm diameter one lamp fluorescent down lighter with white trim complete with glass lens, 1,5m cab tyre, 3-pin plug top, etc.","No",0,null,{"$f":"+IF($D116=\"\",\"\",IF($D116=0,\"rate only\",$D116*(E116)))","v":"rate only"}]
[]
[29,"Type c3: 26W \"Beak Rondo H\" 212mm diameter two lamp fluorescent down lighter with white trim complete with 1,5m cab tyre, 3-pin plug top, etc.","No",0,null,{"$f":"+IF($D118=\"\",\"\",IF($D118=0,\"rate only\",$D118*(E118)))","v":"rate only"}]
[]
[30,"Type j1: 26W \"Beak 31226\" round one lamp fluorescent bulkhead fitting with black trim","No",0,null,{"$f":"+IF($D120=\"\",\"\",IF($D120=0,\"rate only\",$D120*(E120)))","v":"rate only"}]
[]
[31,"Type j4: \"Beak Argos\" single ceiling mounted emergency exit sign light complete with exit signage","No",0,null,{"$f":"+IF($D122=\"\",\"\",IF($D122=0,\"rate only\",$D122*(E122)))","v":"rate only"}]
[]
[32,"Type j5: \"LIH/BH/IND/LU/POLY/CL-2PL9\" round surface mounted bulkhead fitting","No",0,null,{"$f":"+IF($D124=\"\",\"\",IF($D124=0,\"rate only\",$D124*(E124)))","v":"rate only"}]
[]
[33,"Type j6: 150W \"LIH150W/OTELLA\" wall mounted up/down fitting","No",0,null,{"$f":"+IF($D126=\"\",\"\",IF($D126=0,\"rate only\",$D126*(E126)))","v":"rate only"}]
[]
[34,"Type j7: \"Beak Argos\" double ceiling mounted emergency exit sign light complete with exit signage","No",0,null,{"$f":"+IF($D128=\"\",\"\",IF($D128=0,\"rate only\",$D128*(E128)))","v":"rate only"}]
[]
[35,"Type j8: \"Beak Argos\" double ceiling mounted emergency exit sign light complete with RTO204 exit signage","No",0,null,{"$f":"+IF($D130=\"\",\"\",IF($D130=0,\"rate only\",$D130*(E130)))","v":"rate only"}]
[]
[36,"Type p: 2 x 26W \"Beak Dazzle\" decorative pendant fitting complete with hook, 3m steel wire suspension, spiral flex, etc.","No",0,null,{"$f":"+IF($D132=\"\",\"\",IF($D132=0,\"rate only\",$D132*(E132)))","v":"rate only"}]
[]
[37,"Type m: Tube light with four 36W one lamp low brightness diffusers and three adjustable down lighters complete with all accessories and all in accordance with the drawings","No",0,null,{"$f":"+IF($D134=\"\",\"\",IF($D134=0,\"rate only\",$D134*(E134)))","v":"rate only"}]
[]
[]
[null,"Refe to 240 - 83382076 Flood lightings standard"]
[]
[]
[null,"SUPPLY AND INSTALL PERIMETER FENCE LIGHTING"]
[]
[]
[38,"1.8m - 2.4m high Mast ","No",0,null,{"$f":"+IF($D143=\"\",\"\",IF($D143=0,\"rate only\",$D143*(E143)))","v":"rate only"}]
[]
[39,"150 - 300 Watts HPS fitting 220 Volts ","No",0,null,{"$f":"+IF($D145=\"\",\"\",IF($D145=0,\"rate only\",$D145*(E145)))","v":"rate only"}]
[]
[]
[null,"Sub-Total ",null,null,{"$f":"SUM(E10:E146)","v":0}]